{"text_format":"1","workbook":"xlsx","n_sheets":12,"sheets":["Instrukcija","Suvestine","1","2","3","4","5","6","7","8","9","10"],"not_rendered":{"charts":0,"images":1,"macros":1,"external_links":0,"defined_names":11,"comments":0,"pivot_tables":0},"unopened":[],"bounds":{"document_bytes":16777216,"sheet_cells":100000,"rows_first":2000,"rows_last":500,"rows_between":2000,"halvings":0,"cell_chars":16384,"cell_head_chars":4096},"cells_cut":0,"cells_raw":0,"read":"whole","date_system":"1900"}

{"sheet":"Instrukcija","index":0,"n_rows":10,"n_cols":4,"rows_kept":10,"cut":false,"hidden":false,"merged":[[0,3,0,5],[5,1,5,5],[8,1,8,5],[9,1,9,5],[2,0,2,5],[4,1,4,5],[6,1,6,5],[7,1,7,5]]}
[null,null,null,"Verslo plano priedas „Reikalingi ištekliai“\nNr. 1B"]
[]
["Pildymo instrukcija"]
[]
[1,"Šis verslo plano priedas Nr. 1B pildomas tik projekto veikloms, nurodytoms 2014–2020 metų Europos Sąjungos fondų investicijų veiksmų programos 1 prioriteto „Mokslinių tyrimų, eksperimentinės plėtros ir inovacijų skatinimas“  priemonės Nr. 01.2.1-LVPA-K-856  „Eksperimentas“ projektų finansavimo sąlygų aprašo Nr. 1 ir Nr. 2 (toliau – Aprašas) 10.2 punkte."]
[2,"Pildykite tik žalia spalva pažymėtus laukus."]
[3,"Nereikalingų eilučių, stulpelių netrinkite, esant poreikiui eilutes, stulpelius galite tik paslėpti (hide)."]
[4,"Kiekvienam pirmo lygio (kurio paraiškoje nurodytas numeris susideda iš trijų skaitmenų) fiziniam rodikliui, nurodytam paraiškos 6 dalyje „Projekto loginis pagrindimas“, pildykite atskirą lapą. Fizinio rodiklio pavadinimas ir numeris turi sutapti su paraiškoje nurodytais fizinių rodiklių pavadinimais ir numeriais. Jei projektas vykdomas kartu su partneriu(-iais), veikloms, kurios vykdomos kartu su partneriu(-iais) rekomenduojama atskirai numatyti pareiškėjui ir partneriui(-iams) tenkančius fizinius rodiklius.\nAtkreipiame dėmesį, kad vienam fiziniam rodikliui gali būti priskirta tik viena biudžeto išlaidų kategorija."]
[5,"Jei projektas vykdomas kartu su partneriu(-iais), rekomenduojama pareiškėjui ir partneriui(-iams) numatyti atskirus  pirmo lygio fizinius rodiklius."]
[6,"Kartu su verslo planu turi būti pateiktas ir šis verslo plano priedas (popierinė ir elektroninė versijos). LVPA teikiamoje elektroninėje versijoje turi likti visos skaičiavimams naudotos formulės."]

{"sheet":"Suvestine","index":1,"n_rows":41,"n_cols":6,"rows_kept":41,"cut":false,"hidden":false,"merged":[[42,0,42,3],[29,0,29,5],[40,0,40,1],[0,0,0,5],[27,0,27,5],[25,0,25,3]]}
["Veiklų, vykdomų pagal Aprašo 10.2 punktą, išlaidų suvestinė lentelė pagal fizinius rodiklius (lentelė užsipildo automatiškai)"]
[]
["Fizinio rodiklio Nr.","Fizinio rodiklio pavadinimas","Fizinio rodiklio matavimo vnt.","Fizinio rodiklio vnt. skaičius","Tinkamų finansuoti išlaidų suma, Eur","Finansavimo suma, Eur"]
[3,"Statyba, rekonstravimas, remontas ir kt. darbai",null,null,{"$f":"SUM(E5:E14)","v":0},{"$f":"SUM(F5:F14)","v":0}]
[{"$f":"'1'!$D$1","v":0},{"$f":"'1'!$D$2","v":0},{"$f":"'1'!$D$3","v":0},{"$f":"'1'!$H$3","v":0},{"$f":"'1'!$G$9","v":0},{"$f":"'1'!$I$9","v":0}]
[{"$f":"'2'!$D$1","v":0},{"$f":"'2'!$D$2","v":0},{"$f":"'2'!$D$3","v":0},{"$f":"'2'!$H$3","v":0},{"$f":"'2'!$G$9","v":0},{"$f":"'2'!$I$9","v":0}]
[{"$f":"'3'!$D$1","v":0},{"$f":"'3'!$D$2","v":0},{"$f":"'3'!$D$3","v":0},{"$f":"'3'!$H$3","v":0},{"$f":"'3'!$G$9","v":0},{"$f":"'3'!$I$9","v":0}]
[{"$f":"'4'!$D$1","v":0},{"$f":"'4'!$D$2","v":0},{"$f":"'4'!$D$3","v":0},{"$f":"'4'!$H$3","v":0},{"$f":"'4'!$G$9","v":0},{"$f":"'4'!$I$9","v":0}]
[{"$f":"'5'!$D$1","v":0},{"$f":"'5'!$D$2","v":0},{"$f":"'5'!$D$3","v":0},{"$f":"'5'!$H$3","v":0},{"$f":"'5'!$G$9","v":0},{"$f":"'5'!$I$9","v":0}]
[{"$f":"'6'!$D$1","v":0},{"$f":"'6'!$D$2","v":0},{"$f":"'6'!$D$3","v":0},{"$f":"'6'!$H$3","v":0},{"$f":"'6'!$G$9","v":0},{"$f":"'6'!$I$9","v":0}]
[{"$f":"'7'!$D$1","v":0},{"$f":"'7'!$D$2","v":0},{"$f":"'7'!$D$3","v":0},{"$f":"'7'!$H$3","v":0},{"$f":"'7'!$G$9","v":0},{"$f":"'7'!$I$9","v":0}]
[{"$f":"'8'!$D$1","v":0},{"$f":"'8'!$D$2","v":0},{"$f":"'8'!$D$3","v":0},{"$f":"'8'!$H$3","v":0},{"$f":"'8'!$G$9","v":0},{"$f":"'8'!$I$9","v":0}]
[{"$f":"'9'!$D$1","v":0},{"$f":"'9'!$D$2","v":0},{"$f":"'9'!$D$3","v":0},{"$f":"'9'!$H$3","v":0},{"$f":"'9'!$G$9","v":0},{"$f":"'9'!$I$9","v":0}]
[{"$f":"'10'!$D$1","v":0},{"$f":"'10'!$D$2","v":0},{"$f":"'10'!$D$3","v":0},{"$f":"'10'!$H$3","v":0},{"$f":"'10'!$G$9","v":0},{"$f":"'10'!$I$9","v":0}]
[4,"Įranga, įrenginiai ir kt. turtas",null,null,{"$f":"SUM(E16:E23)","v":0},{"$f":"SUM(F16:F23)","v":0}]
[{"$f":"'1'!$D$1","v":0},{"$f":"'1'!$D$2","v":0},{"$f":"'1'!$D$3","v":0},{"$f":"'1'!$H$3","v":0},{"$f":"'1'!$G$32","v":0},{"$f":"'1'!$I$32","v":0}]
[{"$f":"'2'!$D$1","v":0},{"$f":"'2'!$D$2","v":0},{"$f":"'2'!$D$3","v":0},{"$f":"'2'!$H$3","v":0},{"$f":"'2'!$G$32","v":0},{"$f":"'2'!$I$32","v":0}]
[{"$f":"'3'!$D$1","v":0},{"$f":"'3'!$D$2","v":0},{"$f":"'3'!$D$3","v":0},{"$f":"'3'!$H$3","v":0},{"$f":"'3'!$G$32","v":0},{"$f":"'3'!$I$32","v":0}]
[{"$f":"'4'!$D$1","v":0},{"$f":"'4'!$D$2","v":0},{"$f":"'4'!$D$3","v":0},{"$f":"'4'!$H$3","v":0},{"$f":"'4'!$G$32","v":0},{"$f":"'4'!$I$32","v":0}]
[{"$f":"'5'!$D$1","v":0},{"$f":"'5'!$D$2","v":0},{"$f":"'5'!$D$3","v":0},{"$f":"'5'!$H$3","v":0},{"$f":"'5'!$G$32","v":0},{"$f":"'5'!$I$32","v":0}]
[{"$f":"'6'!$D$1","v":0},{"$f":"'6'!$D$2","v":0},{"$f":"'6'!$D$3","v":0},{"$f":"'6'!$H$3","v":0},{"$f":"'6'!$G$32","v":0},{"$f":"'6'!$I$32","v":0}]
[{"$f":"'7'!$D$1","v":0},{"$f":"'7'!$D$2","v":0},{"$f":"'7'!$D$3","v":0},{"$f":"'7'!$H$3","v":0},{"$f":"'7'!$G$32","v":0},{"$f":"'7'!$I$32","v":0}]
[{"$f":"'7'!$D$1","v":0},{"$f":"'8'!$D$2","v":0},{"$f":"'8'!$D$3","v":0},{"$f":"'8'!$H$3","v":0},{"$f":"'8'!$G$32","v":0},{"$f":"'8'!$I$32","v":0}]
[{"$f":"'9'!$D$1","v":0},{"$f":"'9'!$D$2","v":0},{"$f":"'9'!$D$3","v":0},{"$f":"'9'!$H$3","v":0},{"$f":"'9'!$G$32","v":0},{"$f":"'9'!$I$32","v":0}]
[{"$f":"'10'!$D$1","v":0},{"$f":"'10'!$D$2","v":0},{"$f":"'10'!$D$3","v":0},{"$f":"'10'!$H$3","v":0},{"$f":"'10'!$G$32","v":0},{"$f":"'10'!$I$32","v":0}]
["Iš viso:",null,null,null,{"$f":"E15+E4","v":0},{"$f":"F15+F4","v":0}]
[]
[]
[]
["Veiklų, vykdomų pagal Aprašo 10.2 papunktyje nurodytai veiklai, išlaidų suvestinė lentelė pagal išlaidų kategorijas (lentelė užsipildo automatiškai)"]
[]
["Eil. Nr.","Išlaidų kategorijos pavadinimas","Tinkamų finansuoti išlaidų suma be PVM, Eur","Finansavimo suma, Eur"]
[3,"STATYBA, REKONSTRAVIMAS, REMONTAS IR KITI DARBAI \n(MTEP ir inovacijų infrastruktūrai priskirtinų statinių statybos, rekonstravimo, kapitalinio remonto išlaidos.)",{"$f":"'1'!G9+'2'!G9+'3'!G9+'4'!G9+'5'!G9+'6'!G9+'7'!G9+'8'!G9+'9'!G9+'10'!G9","v":0},{"$f":"'1'!I9+'2'!I9+'3'!I9+'4'!I9+'5'!I9+'6'!I9+'7'!I9+'8'!I9+'9'!I9+'10'!I9","v":0}]
["3.1","MTEP ir inovacijų infrastruktūrai priskirtinų statinių statybos išlaidos",{"$f":"'1'!G10+'2'!G10+'3'!G10+'4'!G10+'5'!G10+'6'!G10+'7'!G10+'8'!G10+'9'!G10+'10'!G10","v":0},{"$f":"'1'!I10+'2'!I10+'3'!I10+'4'!I10+'5'!I10+'6'!I10+'7'!I10+'8'!I10+'9'!I10+'10'!I10","v":0}]
["3.2","MTEP ir inovacijų infrastruktūrai priskirtinų statinių rekonstravimo, kapitalinio remonto išlaidos",{"$f":"'1'!G21+'2'!G21+'3'!G21+'4'!G21+'5'!G21+'6'!G21+'7'!G21+'8'!G21+'9'!G21+'10'!G21","v":0},{"$f":"'1'!I21+'2'!I21+'3'!I21+'4'!I21+'5'!I21+'6'!I21+'7'!I21+'8'!I21+'9'!I21+'10'!I21","v":0}]
[4,"ĮRANGA, ĮRENGINIAI IR KITAS TURTAS",{"$f":"'1'!G32+'2'!G32+'3'!G32+'4'!G32+'5'!G32+'6'!G32+'7'!G32+'8'!G32+'9'!G32+'10'!G32","v":0},{"$f":"'1'!I32+'2'!I32+'3'!I32+'4'!I32+'5'!I32+'6'!I32+'7'!I32+'8'!I32+'9'!I32+'10'!I32","v":0}]
["4.1","Baldai (tiesiogiai MTEP veikloms vykdyti bei kuriamoms tyrėjų ir pagalbinio personalo darbo vietoms aprūpinti būtini baldai)",{"$f":"'1'!G33+'2'!G33+'3'!G33+'4'!G33+'5'!G33+'6'!G33+'7'!G33+'8'!G33+'9'!G33+'10'!G33","v":0},{"$f":"'1'!I33+'2'!I33+'3'!I33+'4'!I33+'5'!I33+'6'!I33+'7'!I33+'8'!I33+'9'!I33+'10'!I33","v":0}]
["4.2","Kompiuterinė technika ",{"$f":"'1'!G44+'2'!G44+'3'!G44+'4'!G44+'5'!G44+'6'!G44+'7'!G44+'8'!G44+'9'!G44+'10'!G44","v":0},{"$f":"'1'!I44+'2'!I44+'3'!I44+'4'!I44+'5'!I44+'6'!I44+'7'!I44+'8'!I44+'9'!I44+'10'!I44","v":0}]
["4.3","Patentai, licencijos, susijusios su MTEP ir inovacijų infrastruktūra ar jos panaudojimu",{"$f":"'1'!G50+'2'!G50+'3'!G50+'4'!G50+'5'!G50+'6'!G50+'7'!G50+'8'!G50+'9'!G50+'10'!G50","v":0},{"$f":"'1'!I50+'2'!I50+'3'!I50+'4'!I50+'5'!I50+'6'!I50+'7'!I50+'8'!I50+'9'!I50+'10'!I50","v":0}]
["4.4","Kiti įrengimai, įranga, prietaisai, įrankiai ir įrenginiai, priskirtini MTEP ir inovacijų infrastruktūrai",{"$f":"'1'!G56+'2'!G56+'3'!G56+'4'!G56+'5'!G56+'6'!G56+'7'!G56+'8'!G56+'9'!G56+'10'!G56","v":0},{"$f":"'1'!I56+'2'!I56+'3'!I56+'4'!I56+'5'!I56+'6'!I56+'7'!I56+'8'!I56+'9'!I56+'10'!I56","v":0}]
["Iš viso tinkamų finansuoti išlaidų veikloms, vykdomoms pagal Aprašo 10.2 papunktyje nurodytai veiklai: ",null,{"$f":"C33+C36","v":0},{"$f":"D33+D36","v":0}]

{"sheet":"1","index":2,"n_rows":77,"n_cols":10,"rows_kept":77,"cut":false,"hidden":false,"merged":[[26,1,26,2],[27,1,27,2],[28,1,28,2],[29,1,29,2],[30,1,30,2],[22,1,22,2],[23,1,23,2],[24,1,24,2],[25,1,25,2],[12,1,12,2],[18,1,18,2],[19,1,19,2],[9,1,9,2],[20,1,20,2],[15,1,15,2],[16,1,16,2],[17,1,17,2],[44,1,44,2],[45,1,45,2],[46,1,46,2],[62,1,62,2],[63,1,63,2],[60,1,60,2],[61,1,61,2],[53,1,53,2],[54,1,54,2],[55,1,55,2],[52,1,52,2],[47,1,47,2],[48,1,48,2],[49,1,49,2],[50,1,50,2],[51,1,51,2],[73,1,73,2],[74,1,74,2],[72,1,72,2],[64,1,64,2],[65,1,65,2],[66,1,66,2],[67,1,67,2],[68,1,68,2],[69,1,69,2],[70,1,70,2],[71,1,71,2],[76,0,76,5],[10,1,10,2],[11,1,11,2],[13,1,13,2],[14,1,14,2],[21,1,21,2],[32,1,32,2],[33,1,33,2],[34,1,34,2],[35,1,35,2],[75,1,75,2],[56,1,56,2],[57,1,57,2],[58,1,58,2],[59,1,59,2],[31,1,31,5],[1,0,1,2],[41,1,41,2],[1,3,1,9],[42,1,42,2],[43,1,43,2],[7,1,7,2],[8,1,8,5],[2,5,2,6],[2,3,2,4],[3,0,3,2],[3,3,3,8],[36,1,36,2],[37,1,37,2],[38,1,38,2],[39,1,39,2],[40,1,40,2]]}
[null,null,"Fizinio rodiklio Nr.:"]
["Fizinio rodiklio pavadinimas:"]
[null,null,"Fizinio rodiklio matavimo vnt.:",null,null,"Fizinio rodiklio vnt. skaičius:"]
["Juridinis asmuo (pareiškėjas, partneris), atsakingas už fizinį rodiklį:"]
[]
[null,null,"Finansavimo intensyvumas:",null,null,null,null,"Pasirinkite biudžeto išlaidų kategoriją:"]
[]
["Eil. Nr.","Išlaidų kategorijos pavadinimas",null,"Matavimo vnt.","Kiekis","Vieneto kaina be PVM, Eur","Tinkamų finansuoti išlaidų suma be PVM, Eur","Infrastruktūros naudojimo laiko dalis, skirta išimtinai MTEP, proc.","Finansavimo suma, Eur","Išlaidų pagrindimo dokumentų (ne mažiau kaip 3 komercinių pasiūlymų, sąmatų, techninių projektų ir pan.) pavadinimas, data ir Nr."]
[3,"STATYBA, REKONSTRAVIMAS, REMONTAS IR KITI DARBAI \n(MTEP ir inovacijų infrastruktūrai priskirtinų statinių statybos, rekonstravimo, kapitalinio remonto išlaidos)",null,null,null,null,{"$f":"G10+G21","v":0},null,{"$f":"I10+I21","v":0}]
[3.1,"MTEP ir inovacijų infrastruktūrai priskirtinų statinių statybos išlaidos",null,null,null,null,{"$f":"SUM(G11:G20)","v":0},null,{"$f":"SUM(I11:I20)","v":0}]
["3.1.1","Išlaidų pavadinimas",null,null,null,null,{"$f":"ROUND(E11*F11,2)","v":0},null,{"$f":"ROUND(G11*$D$6*H11,2)","v":0}]
["3.1.2","Išlaidų pavadinimas",null,null,null,null,0,null,0]
["3.1.3","Išlaidų pavadinimas",null,null,null,null,0,null,0]
["3.1.4","Išlaidų pavadinimas",null,null,null,null,0,null,0]
["3.1.5","Išlaidų pavadinimas",null,null,null,null,0,null,0]
["3.1.6","Išlaidų pavadinimas",null,null,null,null,0,null,0]
["3.1.7","Išlaidų pavadinimas",null,null,null,null,0,null,0]
["3.1.8","Išlaidų pavadinimas",null,null,null,null,0,null,0]
["3.1.9","Išlaidų pavadinimas",null,null,null,null,0,null,0]
["3.1.10","Išlaidų pavadinimas",null,null,null,null,{"$f":"ROUND(E20*F20,2)","v":0},null,0]
[3.2,"MTEP ir inovacijų infrastruktūrai priskirtinų statinių rekonstravimo, kapitalinio remonto išlaidos",null,null,null,null,{"$f":"SUM(G22:G31)","v":0},null,{"$f":"SUM(I22:I31)","v":0}]
["3.2.1","Išlaidų pavadinimas",null,null,null,null,{"$f":"ROUND(E22*F22,2)","v":0},null,{"$f":"ROUND(G22*$D$6*H22,2)","v":0}]
["3.2.2","Išlaidų pavadinimas",null,null,null,null,0,null,0]
["3.2.3","Išlaidų pavadinimas",null,null,null,null,0,null,0]
["3.2.4","Išlaidų pavadinimas",null,null,null,null,0,null,0]
["3.2.5","Išlaidų pavadinimas",null,null,null,null,0,null,0]
["3.2.6","Išlaidų pavadinimas",null,null,null,null,0,null,0]
["3.2.7","Išlaidų pavadinimas",null,null,null,null,0,null,0]
["3.2.8","Išlaidų pavadinimas",null,null,null,null,0,null,0]
["3.2.9","Išlaidų pavadinimas",null,null,null,null,0,null,0]
["3.2.10","Išlaidų pavadinimas",null,null,null,null,0,null,0]
[4,"ĮRANGA, ĮRENGINIAI IR KITAS TURTAS",null,null,null,null,{"$f":"SUM(G33,G44,G50,G56)","v":0},null,{"$f":"SUM(I33,I44,I50,I56)","v":0}]
[4.0999999999999996,"Baldai (tiesiogiai MTEP veikloms vykdyti bei kuriamoms tyrėjų ir pagalbinio personalo darbo vietoms aprūpinti būtini baldai)",null,null,null,null,{"$f":"SUM(G34:G43)","v":0},null,{"$f":"SUM(I34:I43)","v":0}]
["4.1.1","Išlaidų pavadinimas",null,null,null,null,0,null,{"$f":"ROUND(G34*$D$6*H34,2)","v":0}]
["4.1.2","Išlaidų pavadinimas",null,null,null,null,{"$f":"ROUND(E35*F35,2)","v":0},null,{"$f":"ROUND(G35*$D$6*H35,2)","v":0}]
["4.1.3","Išlaidų pavadinimas",null,null,null,null,0,null,0]
["4.1.4","Išlaidų pavadinimas",null,null,null,null,0,null,0]
["4.1.5","Išlaidų pavadinimas",null,null,null,null,0,null,0]
["4.1.6","Išlaidų pavadinimas",null,null,null,null,0,null,0]
["4.1.7","Išlaidų pavadinimas",null,null,null,null,0,null,0]
["4.1.8","Išlaidų pavadinimas",null,null,null,null,0,null,0]
["4.1.9","Išlaidų pavadinimas",null,null,null,null,0,null,0]
["4.1.10","Išlaidų pavadinimas",null,null,null,null,0,null,0]
[4.2,"Kompiuterinė technika",null,null,null,null,{"$f":"SUM(G45:G49)","v":0},null,{"$f":"SUM(I45:I49)","v":0}]
["4.2.1","Išlaidų pavadinimas",null,null,null,null,0,null,{"$f":"ROUND(G45*$D$6*H45,2)","v":0}]
["4.2.2","Išlaidų pavadinimas",null,null,null,null,0,null,{"$f":"ROUND(G46*$D$6*H46,2)","v":0}]
["4.2.3","Išlaidų pavadinimas",null,null,null,null,0,null,{"$f":"ROUND(G47*$D$6*H47,2)","v":0}]
["4.2.4","Išlaidų pavadinimas",null,null,null,null,0,null,{"$f":"ROUND(G48*$D$6*H48,2)","v":0}]
["4.2.5","Išlaidų pavadinimas",null,null,null,null,0,null,{"$f":"ROUND(G49*$D$6*H49,2)","v":0}]
[4.3,"Patentai, licencijos, susijusios su MTEP ir inovacijų infrastruktūra ar jos panaudojimu",null,null,null,null,{"$f":"SUM(G51:G55)","v":0},null,{"$f":"SUM(I51:I55)","v":0}]
["4.3.1","Išlaidų pavadinimas",null,null,null,null,0,null,{"$f":"ROUND(G51*$D$6*H51,2)","v":0}]
["4.3.2","Išlaidų pavadinimas",null,null,null,null,0,null,{"$f":"ROUND(G52*$D$6*H52,2)","v":0}]
["4.3.3","Išlaidų pavadinimas",null,null,null,null,0,null,{"$f":"ROUND(G53*$D$6*H53,2)","v":0}]
["4.3.4","Išlaidų pavadinimas",null,null,null,null,0,null,{"$f":"ROUND(G54*$D$6*H54,2)","v":0}]
["4.3.5","Išlaidų pavadinimas",null,null,null,null,0,null,{"$f":"ROUND(G55*$D$6*H55,2)","v":0}]
[4.4000000000000004,"Kiti įrengimai, įranga, prietaisai, įrankiai ir įrenginiai, priskirtini MTEP ir inovacijų infrastruktūrai",null,null,null,null,{"$f":"SUM(G57:G76)","v":0},null,{"$f":"SUM(I57:I76)","v":0}]
["4.4.1","Išlaidų pavadinimas",null,null,null,null,0,null,{"$f":"ROUND(G57*$D$6*H57,2)","v":0}]
["4.4.2","Išlaidų pavadinimas",null,null,null,null,0,null,{"$f":"ROUND(G58*$D$6*H58,2)","v":0}]
["4.4.3","Išlaidų pavadinimas",null,null,null,null,0,null,0]
["4.4.4","Išlaidų pavadinimas",null,null,null,null,0,null,0]
["4.4.5","Išlaidų pavadinimas",null,null,null,null,0,null,0]
["4.4.6","Išlaidų pavadinimas",null,null,null,null,0,null,0]
["4.4.7","Išlaidų pavadinimas",null,null,null,null,0,null,0]
["4.4.8","Išlaidų pavadinimas",null,null,null,null,0,null,0]
["4.4.9","Išlaidų pavadinimas",null,null,null,null,0,null,0]
["4.4.10","Išlaidų pavadinimas",null,null,null,null,0,null,0]
["4.4.11","Išlaidų pavadinimas",null,null,null,null,0,null,0]
["4.4.12","Išlaidų pavadinimas",null,null,null,null,0,null,0]
["4.4.13","Išlaidų pavadinimas",null,null,null,null,0,null,0]
["4.4.14","Išlaidų pavadinimas",null,null,null,null,0,null,0]
["4.4.15","Išlaidų pavadinimas",null,null,null,null,0,null,0]
["4.4.16","Išlaidų pavadinimas",null,null,null,null,0,null,0]
["4.4.17","Išlaidų pavadinimas",null,null,null,null,0,null,0]
["4.4.18","Išlaidų pavadinimas",null,null,null,null,0,null,0]
["4.4.19","Išlaidų pavadinimas",null,null,null,null,0,null,0]
["4.4.20","Išlaidų pavadinimas",null,null,null,null,0,null,0]
["Iš viso tinkamų finansuoti išlaidų:",null,null,null,null,null,{"$f":"G9+G32","v":0},null,{"$f":"I9+I32","v":0}]

{"sheet":"2","index":3,"n_rows":77,"n_cols":10,"rows_kept":77,"cut":false,"hidden":false,"merged":[[73,1,73,2],[74,1,74,2],[75,1,75,2],[76,0,76,5],[67,1,67,2],[68,1,68,2],[69,1,69,2],[70,1,70,2],[71,1,71,2],[72,1,72,2],[66,1,66,2],[55,1,55,2],[56,1,56,2],[57,1,57,2],[58,1,58,2],[59,1,59,2],[60,1,60,2],[61,1,61,2],[62,1,62,2],[63,1,63,2],[64,1,64,2],[65,1,65,2],[54,1,54,2],[43,1,43,2],[44,1,44,2],[45,1,45,2],[46,1,46,2],[47,1,47,2],[48,1,48,2],[49,1,49,2],[50,1,50,2],[51,1,51,2],[52,1,52,2],[53,1,53,2],[42,1,42,2],[31,1,31,5],[32,1,32,2],[33,1,33,2],[34,1,34,2],[35,1,35,2],[36,1,36,2],[37,1,37,2],[38,1,38,2],[39,1,39,2],[40,1,40,2],[41,1,41,2],[30,1,30,2],[19,1,19,2],[20,1,20,2],[21,1,21,2],[22,1,22,2],[23,1,23,2],[24,1,24,2],[25,1,25,2],[26,1,26,2],[27,1,27,2],[28,1,28,2],[29,1,29,2],[18,1,18,2],[7,1,7,2],[8,1,8,5],[9,1,9,2],[10,1,10,2],[11,1,11,2],[12,1,12,2],[13,1,13,2],[14,1,14,2],[15,1,15,2],[16,1,16,2],[17,1,17,2],[1,0,1,2],[1,3,1,9],[2,3,2,4],[2,5,2,6],[3,0,3,2],[3,3,3,8]]}
[null,null,"Fizinio rodiklio Nr.:"]
["Fizinio rodiklio pavadinimas:"]
[null,null,"Fizinio rodiklio matavimo vnt.:",null,null,"Fizinio rodiklio vnt. skaičius:"]
["Juridinis asmuo (pareiškėjas, partneris), atsakingas už fizinį rodiklį:"]
[]
[null,null,"Finansavimo intensyvumas:",null,null,null,null,"Pasirinkite biudžeto išlaidų kategoriją:"]
[]
["Eil. Nr.","Išlaidų kategorijos pavadinimas",null,"Matavimo vnt.","Kiekis","Vieneto kaina be PVM, Eur","Tinkamų finansuoti išlaidų suma be PVM, Eur","Infrastruktūros naudojimo laiko dalis, skirta išimtinai MTEP, proc.","Finansavimo suma, Eur","Išlaidų pagrindimo dokumentų (ne mažiau kaip 3 komercinių pasiūlymų, sąmatų, techninių projektų ir pan.) pavadinimas, data ir Nr."]
[3,"STATYBA, REKONSTRAVIMAS, REMONTAS IR KITI DARBAI \n(MTEP ir inovacijų infrastruktūrai priskirtinų statinių statybos, rekonstravimo, kapitalinio remonto išlaidos)",null,null,null,null,{"$f":"G10+G21","v":0},null,{"$f":"I10+I21","v":0}]
["3.1.","MTEP ir inovacijų infrastruktūrai priskirtinų statinių statybos išlaidos",null,null,null,null,{"$f":"SUM(G11:G20)","v":0},null,{"$f":"SUM(I11:I20)","v":0}]
["3.1.1","Išlaidų pavadinimas",null,null,null,null,{"$f":"ROUND(E11*F11,2)","v":0},null,{"$f":"ROUND(G11*$D$6*H11,2)","v":0}]
["3.1.2","Išlaidų pavadinimas",null,null,null,null,0,null,{"$f":"ROUND(G12*$D$6*H12,2)","v":0}]
["3.1.3","Išlaidų pavadinimas",null,null,null,null,0,null,0]
["3.1.4","Išlaidų pavadinimas",null,null,null,null,0,null,0]
["3.1.5","Išlaidų pavadinimas",null,null,null,null,0,null,0]
["3.1.6","Išlaidų pavadinimas",null,null,null,null,0,null,{"$f":"ROUND(G16*$D$6*H16,2)","v":0}]
["3.1.7","Išlaidų pavadinimas",null,null,null,null,0,null,{"$f":"ROUND(G17*$D$6*H17,2)","v":0}]
["3.1.8","Išlaidų pavadinimas",null,null,null,null,0,null,{"$f":"ROUND(G18*$D$6*H18,2)","v":0}]
["3.1.9","Išlaidų pavadinimas",null,null,null,null,0,null,{"$f":"ROUND(G19*$D$6*H19,2)","v":0}]
["3.1.10","Išlaidų pavadinimas",null,null,null,null,{"$f":"ROUND(E20*F20,2)","v":0},null,{"$f":"ROUND(G20*$D$6*H20,2)","v":0}]
["3.2.","MTEP ir inovacijų infrastruktūrai priskirtinų statinių rekonstravimo, kapitalinio remonto išlaidos",null,null,null,null,{"$f":"SUM(G22:G31)","v":0},null,{"$f":"SUM(I22:I31)","v":0}]
["3.2.1","Išlaidų pavadinimas",null,null,null,null,{"$f":"ROUND(E22*F22,2)","v":0},null,0]
["3.2.2","Išlaidų pavadinimas",null,null,null,null,0,null,{"$f":"ROUND(G23*$D$6*H23,2)","v":0}]
["3.2.3","Išlaidų pavadinimas",null,null,null,null,0,null,0]
["3.2.4","Išlaidų pavadinimas",null,null,null,null,0,null,0]
["3.2.5","Išlaidų pavadinimas",null,null,null,null,0,null,0]
["3.2.6","Išlaidų pavadinimas",null,null,null,null,0,null,0]
["3.2.7","Išlaidų pavadinimas",null,null,null,null,0,null,0]
["3.2.8","Išlaidų pavadinimas",null,null,null,null,0,null,0]
["3.2.9","Išlaidų pavadinimas",null,null,null,null,0,null,0]
["3.2.10","Išlaidų pavadinimas",null,null,null,null,0,null,0]
[4,"ĮRANGA, ĮRENGINIAI IR KITAS TURTAS",null,null,null,null,{"$f":"SUM(G33,G44,G50,G56)","v":0},null,{"$f":"SUM(I33,I44,I50,I56)","v":0}]
["4.1","Baldai (tiesiogiai MTEP veikloms vykdyti bei kuriamoms tyrėjų ir pagalbinio personalo darbo vietoms aprūpinti būtini baldai)",null,null,null,null,{"$f":"SUM(G34:G43)","v":0},null,{"$f":"SUM(I34:I43)","v":0}]
["4.1.1","Išlaidų pavadinimas",null,null,null,null,0,null,{"$f":"ROUND(G34*$D$6*H34,2)","v":0}]
["4.1.2","Išlaidų pavadinimas",null,null,null,null,0,null,{"$f":"ROUND(G35*$D$6*H35,2)","v":0}]
["4.1.3","Išlaidų pavadinimas",null,null,null,null,0,null,0]
["4.1.4","Išlaidų pavadinimas",null,null,null,null,0,null,0]
["4.1.5","Išlaidų pavadinimas",null,null,null,null,0,null,0]
["4.1.6","Išlaidų pavadinimas",null,null,null,null,0,null,0]
["4.1.7","Išlaidų pavadinimas",null,null,null,null,0,null,0]
["4.1.8","Išlaidų pavadinimas",null,null,null,null,0,null,0]
["4.1.9","Išlaidų pavadinimas",null,null,null,null,0,null,0]
["4.1.10","Išlaidų pavadinimas",null,null,null,null,0,null,0]
["4.2","Kompiuterinė technika",null,null,null,null,{"$f":"SUM(G45:G49)","v":0},null,{"$f":"SUM(I45:I49)","v":0}]
["4.2.1","Išlaidų pavadinimas",null,null,null,null,0,null,{"$f":"ROUND(G45*$D$6*H45,2)","v":0}]
["4.2.2","Išlaidų pavadinimas",null,null,null,null,0,null,{"$f":"ROUND(G46*$D$6*H46,2)","v":0}]
["4.2.3","Išlaidų pavadinimas",null,null,null,null,0,null,{"$f":"ROUND(G47*$D$6*H47,2)","v":0}]
["4.2.4","Išlaidų pavadinimas",null,null,null,null,0,null,{"$f":"ROUND(G48*$D$6*H48,2)","v":0}]
["4.2.5","Išlaidų pavadinimas",null,null,null,null,0,null,{"$f":"ROUND(G49*$D$6*H49,2)","v":0}]
["4.3","Patentai, licencijos, susijusios su MTEP ir inovacijų infrastruktūra ar jos panaudojimu",null,null,null,null,{"$f":"SUM(G51:G55)","v":0},null,{"$f":"SUM(I51:I55)","v":0}]
["4.3.1","Išlaidų pavadinimas",null,null,null,null,0,null,{"$f":"ROUND(G51*$D$6*H51,2)","v":0}]
["4.3.2","Išlaidų pavadinimas",null,null,null,null,0,null,{"$f":"ROUND(G52*$D$6*H52,2)","v":0}]
["4.3.3","Išlaidų pavadinimas",null,null,null,null,0,null,{"$f":"ROUND(G53*$D$6*H53,2)","v":0}]
["4.3.4","Išlaidų pavadinimas",null,null,null,null,0,null,{"$f":"ROUND(G54*$D$6*H54,2)","v":0}]
["4.3.5","Išlaidų pavadinimas",null,null,null,null,0,null,{"$f":"ROUND(G55*$D$6*H55,2)","v":0}]
["4.4","Kiti įrengimai, įranga, prietaisai, įrankiai ir įrenginiai, priskirtini MTEP ir inovacijų infrastruktūrai",null,null,null,null,{"$f":"SUM(G57:G76)","v":0},null,{"$f":"SUM(I57:I76)","v":0}]
["4.4.1","Išlaidų pavadinimas",null,null,null,null,0,null,{"$f":"ROUND(G57*$D$6*H57,2)","v":0}]
["4.4.2","Išlaidų pavadinimas",null,null,null,null,0,null,{"$f":"ROUND(G58*$D$6*H58,2)","v":0}]
["4.4.3","Išlaidų pavadinimas",null,null,null,null,0,null,0]
["4.4.4","Išlaidų pavadinimas",null,null,null,null,0,null,0]
["4.4.5","Išlaidų pavadinimas",null,null,null,null,0,null,0]
["4.4.6","Išlaidų pavadinimas",null,null,null,null,0,null,0]
["4.4.7","Išlaidų pavadinimas",null,null,null,null,0,null,0]
["4.4.8","Išlaidų pavadinimas",null,null,null,null,0,null,0]
["4.4.9","Išlaidų pavadinimas",null,null,null,null,0,null,0]
["4.4.10","Išlaidų pavadinimas",null,null,null,null,0,null,0]
["4.4.11","Išlaidų pavadinimas",null,null,null,null,0,null,0]
["4.4.12","Išlaidų pavadinimas",null,null,null,null,0,null,0]
["4.4.13","Išlaidų pavadinimas",null,null,null,null,0,null,0]
["4.4.14","Išlaidų pavadinimas",null,null,null,null,0,null,0]
["4.4.15","Išlaidų pavadinimas",null,null,null,null,0,null,0]
["4.4.16","Išlaidų pavadinimas",null,null,null,null,0,null,0]
["4.4.17","Išlaidų pavadinimas",null,null,null,null,0,null,0]
["4.4.18","Išlaidų pavadinimas",null,null,null,null,0,null,0]
["4.4.19","Išlaidų pavadinimas",null,null,null,null,0,null,0]
["4.4.20","Išlaidų pavadinimas",null,null,null,null,0,null,0]
["Iš viso tinkamų finansuoti išlaidų:",null,null,null,null,null,{"$f":"G9+G32","v":0},null,{"$f":"I9+I32","v":0}]

{"sheet":"3","index":4,"n_rows":77,"n_cols":10,"rows_kept":77,"cut":false,"hidden":false,"merged":[[73,1,73,2],[74,1,74,2],[75,1,75,2],[76,0,76,5],[67,1,67,2],[68,1,68,2],[69,1,69,2],[70,1,70,2],[71,1,71,2],[72,1,72,2],[66,1,66,2],[55,1,55,2],[56,1,56,2],[57,1,57,2],[58,1,58,2],[59,1,59,2],[60,1,60,2],[61,1,61,2],[62,1,62,2],[63,1,63,2],[64,1,64,2],[65,1,65,2],[54,1,54,2],[43,1,43,2],[44,1,44,2],[45,1,45,2],[46,1,46,2],[47,1,47,2],[48,1,48,2],[49,1,49,2],[50,1,50,2],[51,1,51,2],[52,1,52,2],[53,1,53,2],[42,1,42,2],[31,1,31,5],[32,1,32,2],[33,1,33,2],[34,1,34,2],[35,1,35,2],[36,1,36,2],[37,1,37,2],[38,1,38,2],[39,1,39,2],[40,1,40,2],[41,1,41,2],[30,1,30,2],[19,1,19,2],[20,1,20,2],[21,1,21,2],[22,1,22,2],[23,1,23,2],[24,1,24,2],[25,1,25,2],[26,1,26,2],[27,1,27,2],[28,1,28,2],[29,1,29,2],[18,1,18,2],[7,1,7,2],[8,1,8,5],[9,1,9,2],[10,1,10,2],[11,1,11,2],[12,1,12,2],[13,1,13,2],[14,1,14,2],[15,1,15,2],[16,1,16,2],[17,1,17,2],[1,0,1,2],[1,3,1,9],[2,3,2,4],[2,5,2,6],[3,0,3,2],[3,3,3,8]]}
[null,null,"Fizinio rodiklio Nr.:"]
["Fizinio rodiklio pavadinimas:"]
[null,null,"Fizinio rodiklio matavimo vnt.:",null,null,"Fizinio rodiklio vnt. skaičius:"]
["Juridinis asmuo (pareiškėjas, partneris), atsakingas už fizinį rodiklį:"]
[]
[null,null,"Finansavimo intensyvumas:",null,null,null,null,"Pasirinkite biudžeto išlaidų kategoriją:"]
[]
["Eil. Nr.","Išlaidų kategorijos pavadinimas",null,"Matavimo vnt.","Kiekis","Vieneto kaina be PVM, Eur","Tinkamų finansuoti išlaidų suma be PVM, Eur","Infrastruktūros naudojimo laiko dalis, skirta išimtinai MTEP, proc.","Finansavimo suma, Eur","Išlaidų pagrindimo dokumentų (ne mažiau kaip 3 komercinių pasiūlymų, sąmatų, techninių projektų ir pan.) pavadinimas, data ir Nr."]
[3,"STATYBA, REKONSTRAVIMAS, REMONTAS IR KITI DARBAI \n(MTEP ir inovacijų infrastruktūrai priskirtinų statinių statybos, rekonstravimo, kapitalinio remonto išlaidos)",null,null,null,null,{"$f":"G10+G21","v":0},null,{"$f":"I10+I21","v":0}]
["3.1.","MTEP ir inovacijų infrastruktūrai priskirtinų statinių statybos išlaidos",null,null,null,null,{"$f":"SUM(G11:G20)","v":0},null,{"$f":"SUM(I11:I20)","v":0}]
["3.1.1","Išlaidų pavadinimas",null,null,null,null,{"$f":"ROUND(E11*F11,2)","v":0},null,{"$f":"ROUND(G11*$D$6*H11,2)","v":0}]
["3.1.2","Išlaidų pavadinimas",null,null,null,null,0,null,{"$f":"ROUND(G12*$D$6*H12,2)","v":0}]
["3.1.3","Išlaidų pavadinimas",null,null,null,null,0,null,0]
["3.1.4","Išlaidų pavadinimas",null,null,null,null,0,null,0]
["3.1.5","Išlaidų pavadinimas",null,null,null,null,0,null,0]
["3.1.6","Išlaidų pavadinimas",null,null,null,null,0,null,{"$f":"ROUND(G16*$D$6*H16,2)","v":0}]
["3.1.7","Išlaidų pavadinimas",null,null,null,null,0,null,{"$f":"ROUND(G17*$D$6*H17,2)","v":0}]
["3.1.8","Išlaidų pavadinimas",null,null,null,null,0,null,{"$f":"ROUND(G18*$D$6*H18,2)","v":0}]
["3.1.9","Išlaidų pavadinimas",null,null,null,null,0,null,{"$f":"ROUND(G19*$D$6*H19,2)","v":0}]
["3.1.10","Išlaidų pavadinimas",null,null,null,null,{"$f":"ROUND(E20*F20,2)","v":0},null,{"$f":"ROUND(G20*$D$6*H20,2)","v":0}]
["3.2.","MTEP ir inovacijų infrastruktūrai priskirtinų statinių rekonstravimo, kapitalinio remonto išlaidos",null,null,null,null,{"$f":"SUM(G22:G31)","v":0},null,{"$f":"SUM(I22:I31)","v":0}]
["3.2.1","Išlaidų pavadinimas",null,null,null,null,{"$f":"ROUND(E22*F22,2)","v":0},null,0]
["3.2.2","Išlaidų pavadinimas",null,null,null,null,0,null,{"$f":"ROUND(G23*$D$6*H23,2)","v":0}]
["3.2.3","Išlaidų pavadinimas",null,null,null,null,0,null,0]
["3.2.4","Išlaidų pavadinimas",null,null,null,null,0,null,0]
["3.2.5","Išlaidų pavadinimas",null,null,null,null,0,null,0]
["3.2.6","Išlaidų pavadinimas",null,null,null,null,0,null,0]
["3.2.7","Išlaidų pavadinimas",null,null,null,null,0,null,0]
["3.2.8","Išlaidų pavadinimas",null,null,null,null,0,null,0]
["3.2.9","Išlaidų pavadinimas",null,null,null,null,0,null,0]
["3.2.10","Išlaidų pavadinimas",null,null,null,null,0,null,0]
[4,"ĮRANGA, ĮRENGINIAI IR KITAS TURTAS",null,null,null,null,{"$f":"SUM(G33,G44,G50,G56)","v":0},null,{"$f":"SUM(I33,I44,I50,I56)","v":0}]
["4.1","Baldai (tiesiogiai MTEP veikloms vykdyti bei kuriamoms tyrėjų ir pagalbinio personalo darbo vietoms aprūpinti būtini baldai)",null,null,null,null,{"$f":"SUM(G34:G43)","v":0},null,{"$f":"SUM(I34:I43)","v":0}]
["4.1.1","Išlaidų pavadinimas",null,null,null,null,0,null,{"$f":"ROUND(G34*$D$6*H34,2)","v":0}]
["4.1.2","Išlaidų pavadinimas",null,null,null,null,0,null,{"$f":"ROUND(G35*$D$6*H35,2)","v":0}]
["4.1.3","Išlaidų pavadinimas",null,null,null,null,0,null,0]
["4.1.4","Išlaidų pavadinimas",null,null,null,null,0,null,0]
["4.1.5","Išlaidų pavadinimas",null,null,null,null,0,null,0]
["4.1.6","Išlaidų pavadinimas",null,null,null,null,0,null,0]
["4.1.7","Išlaidų pavadinimas",null,null,null,null,0,null,0]
["4.1.8","Išlaidų pavadinimas",null,null,null,null,0,null,0]
["4.1.9","Išlaidų pavadinimas",null,null,null,null,0,null,0]
["4.1.10","Išlaidų pavadinimas",null,null,null,null,0,null,0]
["4.2","Kompiuterinė technika",null,null,null,null,{"$f":"SUM(G45:G49)","v":0},null,{"$f":"SUM(I45:I49)","v":0}]
["4.2.1","Išlaidų pavadinimas",null,null,null,null,0,null,{"$f":"ROUND(G45*$D$6*H45,2)","v":0}]
["4.2.2","Išlaidų pavadinimas",null,null,null,null,0,null,{"$f":"ROUND(G46*$D$6*H46,2)","v":0}]
["4.2.3","Išlaidų pavadinimas",null,null,null,null,0,null,{"$f":"ROUND(G47*$D$6*H47,2)","v":0}]
["4.2.4","Išlaidų pavadinimas",null,null,null,null,0,null,{"$f":"ROUND(G48*$D$6*H48,2)","v":0}]
["4.2.5","Išlaidų pavadinimas",null,null,null,null,0,null,{"$f":"ROUND(G49*$D$6*H49,2)","v":0}]
["4.3","Patentai, licencijos, susijusios su MTEP ir inovacijų infrastruktūra ar jos panaudojimu",null,null,null,null,{"$f":"SUM(G51:G55)","v":0},null,{"$f":"SUM(I51:I55)","v":0}]
["4.3.1","Išlaidų pavadinimas",null,null,null,null,0,null,{"$f":"ROUND(G51*$D$6*H51,2)","v":0}]
["4.3.2","Išlaidų pavadinimas",null,null,null,null,0,null,{"$f":"ROUND(G52*$D$6*H52,2)","v":0}]
["4.3.3","Išlaidų pavadinimas",null,null,null,null,0,null,{"$f":"ROUND(G53*$D$6*H53,2)","v":0}]
["4.3.4","Išlaidų pavadinimas",null,null,null,null,0,null,{"$f":"ROUND(G54*$D$6*H54,2)","v":0}]
["4.3.5","Išlaidų pavadinimas",null,null,null,null,0,null,{"$f":"ROUND(G55*$D$6*H55,2)","v":0}]
["4.4","Kiti įrengimai, įranga, prietaisai, įrankiai ir įrenginiai, priskirtini MTEP ir inovacijų infrastruktūrai",null,null,null,null,{"$f":"SUM(G57:G76)","v":0},null,{"$f":"SUM(I57:I76)","v":0}]
["4.4.1","Išlaidų pavadinimas",null,null,null,null,0,null,{"$f":"ROUND(G57*$D$6*H57,2)","v":0}]
["4.4.2","Išlaidų pavadinimas",null,null,null,null,0,null,{"$f":"ROUND(G58*$D$6*H58,2)","v":0}]
["4.4.3","Išlaidų pavadinimas",null,null,null,null,0,null,0]
["4.4.4","Išlaidų pavadinimas",null,null,null,null,0,null,0]
["4.4.5","Išlaidų pavadinimas",null,null,null,null,0,null,0]
["4.4.6","Išlaidų pavadinimas",null,null,null,null,0,null,0]
["4.4.7","Išlaidų pavadinimas",null,null,null,null,0,null,0]
["4.4.8","Išlaidų pavadinimas",null,null,null,null,0,null,0]
["4.4.9","Išlaidų pavadinimas",null,null,null,null,0,null,0]
["4.4.10","Išlaidų pavadinimas",null,null,null,null,0,null,0]
["4.4.11","Išlaidų pavadinimas",null,null,null,null,0,null,0]
["4.4.12","Išlaidų pavadinimas",null,null,null,null,0,null,0]
["4.4.13","Išlaidų pavadinimas",null,null,null,null,0,null,0]
["4.4.14","Išlaidų pavadinimas",null,null,null,null,0,null,0]
["4.4.15","Išlaidų pavadinimas",null,null,null,null,0,null,0]
["4.4.16","Išlaidų pavadinimas",null,null,null,null,0,null,0]
["4.4.17","Išlaidų pavadinimas",null,null,null,null,0,null,0]
["4.4.18","Išlaidų pavadinimas",null,null,null,null,0,null,0]
["4.4.19","Išlaidų pavadinimas",null,null,null,null,0,null,0]
["4.4.20","Išlaidų pavadinimas",null,null,null,null,0,null,0]
["Iš viso tinkamų finansuoti išlaidų:",null,null,null,null,null,{"$f":"G9+G32","v":0},null,{"$f":"I9+I32","v":0}]

{"sheet":"4","index":5,"n_rows":77,"n_cols":10,"rows_kept":77,"cut":false,"hidden":false,"merged":[[73,1,73,2],[74,1,74,2],[75,1,75,2],[76,0,76,5],[67,1,67,2],[68,1,68,2],[69,1,69,2],[70,1,70,2],[71,1,71,2],[72,1,72,2],[66,1,66,2],[55,1,55,2],[56,1,56,2],[57,1,57,2],[58,1,58,2],[59,1,59,2],[60,1,60,2],[61,1,61,2],[62,1,62,2],[63,1,63,2],[64,1,64,2],[65,1,65,2],[54,1,54,2],[43,1,43,2],[44,1,44,2],[45,1,45,2],[46,1,46,2],[47,1,47,2],[48,1,48,2],[49,1,49,2],[50,1,50,2],[51,1,51,2],[52,1,52,2],[53,1,53,2],[42,1,42,2],[31,1,31,5],[32,1,32,2],[33,1,33,2],[34,1,34,2],[35,1,35,2],[36,1,36,2],[37,1,37,2],[38,1,38,2],[39,1,39,2],[40,1,40,2],[41,1,41,2],[30,1,30,2],[19,1,19,2],[20,1,20,2],[21,1,21,2],[22,1,22,2],[23,1,23,2],[24,1,24,2],[25,1,25,2],[26,1,26,2],[27,1,27,2],[28,1,28,2],[29,1,29,2],[18,1,18,2],[7,1,7,2],[8,1,8,5],[9,1,9,2],[10,1,10,2],[11,1,11,2],[12,1,12,2],[13,1,13,2],[14,1,14,2],[15,1,15,2],[16,1,16,2],[17,1,17,2],[1,0,1,2],[1,3,1,9],[2,3,2,4],[2,5,2,6],[3,0,3,2],[3,3,3,8]]}
[null,null,"Fizinio rodiklio Nr.:"]
["Fizinio rodiklio pavadinimas:"]
[null,null,"Fizinio rodiklio matavimo vnt.:",null,null,"Fizinio rodiklio vnt. skaičius:"]
["Juridinis asmuo (pareiškėjas, partneris), atsakingas už fizinį rodiklį:"]
[]
[null,null,"Finansavimo intensyvumas:",null,null,null,null,"Pasirinkite biudžeto išlaidų kategoriją:"]
[]
["Eil. Nr.","Išlaidų kategorijos pavadinimas",null,"Matavimo vnt.","Kiekis","Vieneto kaina be PVM, Eur","Tinkamų finansuoti išlaidų suma be PVM, Eur","Infrastruktūros naudojimo laiko dalis, skirta išimtinai MTEP, proc.","Finansavimo suma, Eur","Išlaidų pagrindimo dokumentų (ne mažiau kaip 3 komercinių pasiūlymų, sąmatų, techninių projektų ir pan.) pavadinimas, data ir Nr."]
[3,"STATYBA, REKONSTRAVIMAS, REMONTAS IR KITI DARBAI \n(MTEP ir inovacijų infrastruktūrai priskirtinų statinių statybos, rekonstravimo, kapitalinio remonto išlaidos)",null,null,null,null,{"$f":"G10+G21","v":0},null,{"$f":"I10+I21","v":0}]
["3.1.","MTEP ir inovacijų infrastruktūrai priskirtinų statinių statybos išlaidos",null,null,null,null,{"$f":"SUM(G11:G20)","v":0},null,{"$f":"SUM(I11:I20)","v":0}]
["3.1.1","Išlaidų pavadinimas",null,null,null,null,{"$f":"ROUND(E11*F11,2)","v":0},null,{"$f":"ROUND(G11*$D$6*H11,2)","v":0}]
["3.1.2","Išlaidų pavadinimas",null,null,null,null,0,null,{"$f":"ROUND(G12*$D$6*H12,2)","v":0}]
["3.1.3","Išlaidų pavadinimas",null,null,null,null,0,null,0]
["3.1.4","Išlaidų pavadinimas",null,null,null,null,0,null,0]
["3.1.5","Išlaidų pavadinimas",null,null,null,null,0,null,0]
["3.1.6","Išlaidų pavadinimas",null,null,null,null,0,null,{"$f":"ROUND(G16*$D$6*H16,2)","v":0}]
["3.1.7","Išlaidų pavadinimas",null,null,null,null,0,null,{"$f":"ROUND(G17*$D$6*H17,2)","v":0}]
["3.1.8","Išlaidų pavadinimas",null,null,null,null,0,null,{"$f":"ROUND(G18*$D$6*H18,2)","v":0}]
["3.1.9","Išlaidų pavadinimas",null,null,null,null,0,null,{"$f":"ROUND(G19*$D$6*H19,2)","v":0}]
["3.1.10","Išlaidų pavadinimas",null,null,null,null,{"$f":"ROUND(E20*F20,2)","v":0},null,{"$f":"ROUND(G20*$D$6*H20,2)","v":0}]
["3.2.","MTEP ir inovacijų infrastruktūrai priskirtinų statinių rekonstravimo, kapitalinio remonto išlaidos",null,null,null,null,{"$f":"SUM(G22:G31)","v":0},null,{"$f":"SUM(I22:I31)","v":0}]
["3.2.1","Išlaidų pavadinimas",null,null,null,null,{"$f":"ROUND(E22*F22,2)","v":0},null,0]
["3.2.2","Išlaidų pavadinimas",null,null,null,null,0,null,{"$f":"ROUND(G23*$D$6*H23,2)","v":0}]
["3.2.3","Išlaidų pavadinimas",null,null,null,null,0,null,0]
["3.2.4","Išlaidų pavadinimas",null,null,null,null,0,null,0]
["3.2.5","Išlaidų pavadinimas",null,null,null,null,0,null,0]
["3.2.6","Išlaidų pavadinimas",null,null,null,null,0,null,0]
["3.2.7","Išlaidų pavadinimas",null,null,null,null,0,null,0]
["3.2.8","Išlaidų pavadinimas",null,null,null,null,0,null,0]
["3.2.9","Išlaidų pavadinimas",null,null,null,null,0,null,0]
["3.2.10","Išlaidų pavadinimas",null,null,null,null,0,null,0]
[4,"ĮRANGA, ĮRENGINIAI IR KITAS TURTAS",null,null,null,null,{"$f":"SUM(G33,G44,G50,G56)","v":0},null,{"$f":"SUM(I33,I44,I50,I56)","v":0}]
["4.1","Baldai (tiesiogiai MTEP veikloms vykdyti bei kuriamoms tyrėjų ir pagalbinio personalo darbo vietoms aprūpinti būtini baldai)",null,null,null,null,{"$f":"SUM(G34:G43)","v":0},null,{"$f":"SUM(I34:I43)","v":0}]
["4.1.1","Išlaidų pavadinimas",null,null,null,null,0,null,{"$f":"ROUND(G34*$D$6*H34,2)","v":0}]
["4.1.2","Išlaidų pavadinimas",null,null,null,null,0,null,{"$f":"ROUND(G35*$D$6*H35,2)","v":0}]
["4.1.3","Išlaidų pavadinimas",null,null,null,null,0,null,0]
["4.1.4","Išlaidų pavadinimas",null,null,null,null,0,null,0]
["4.1.5","Išlaidų pavadinimas",null,null,null,null,0,null,0]
["4.1.6","Išlaidų pavadinimas",null,null,null,null,0,null,0]
["4.1.7","Išlaidų pavadinimas",null,null,null,null,0,null,0]
["4.1.8","Išlaidų pavadinimas",null,null,null,null,0,null,0]
["4.1.9","Išlaidų pavadinimas",null,null,null,null,0,null,0]
["4.1.10","Išlaidų pavadinimas",null,null,null,null,0,null,0]
["4.2","Kompiuterinė technika",null,null,null,null,{"$f":"SUM(G45:G49)","v":0},null,{"$f":"SUM(I45:I49)","v":0}]
["4.2.1","Išlaidų pavadinimas",null,null,null,null,0,null,{"$f":"ROUND(G45*$D$6*H45,2)","v":0}]
["4.2.2","Išlaidų pavadinimas",null,null,null,null,0,null,{"$f":"ROUND(G46*$D$6*H46,2)","v":0}]
["4.2.3","Išlaidų pavadinimas",null,null,null,null,0,null,{"$f":"ROUND(G47*$D$6*H47,2)","v":0}]
["4.2.4","Išlaidų pavadinimas",null,null,null,null,0,null,{"$f":"ROUND(G48*$D$6*H48,2)","v":0}]
["4.2.5","Išlaidų pavadinimas",null,null,null,null,0,null,{"$f":"ROUND(G49*$D$6*H49,2)","v":0}]
["4.3","Patentai, licencijos, susijusios su MTEP ir inovacijų infrastruktūra ar jos panaudojimu",null,null,null,null,{"$f":"SUM(G51:G55)","v":0},null,{"$f":"SUM(I51:I55)","v":0}]
["4.3.1","Išlaidų pavadinimas",null,null,null,null,0,null,{"$f":"ROUND(G51*$D$6*H51,2)","v":0}]
["4.3.2","Išlaidų pavadinimas",null,null,null,null,0,null,{"$f":"ROUND(G52*$D$6*H52,2)","v":0}]
["4.3.3","Išlaidų pavadinimas",null,null,null,null,0,null,{"$f":"ROUND(G53*$D$6*H53,2)","v":0}]
["4.3.4","Išlaidų pavadinimas",null,null,null,null,0,null,{"$f":"ROUND(G54*$D$6*H54,2)","v":0}]
["4.3.5","Išlaidų pavadinimas",null,null,null,null,0,null,{"$f":"ROUND(G55*$D$6*H55,2)","v":0}]
["4.4","Kiti įrengimai, įranga, prietaisai, įrankiai ir įrenginiai, priskirtini MTEP ir inovacijų infrastruktūrai",null,null,null,null,{"$f":"SUM(G57:G76)","v":0},null,{"$f":"SUM(I57:I76)","v":0}]
["4.4.1","Išlaidų pavadinimas",null,null,null,null,0,null,{"$f":"ROUND(G57*$D$6*H57,2)","v":0}]
["4.4.2","Išlaidų pavadinimas",null,null,null,null,0,null,{"$f":"ROUND(G58*$D$6*H58,2)","v":0}]
["4.4.3","Išlaidų pavadinimas",null,null,null,null,0,null,0]
["4.4.4","Išlaidų pavadinimas",null,null,null,null,0,null,0]
["4.4.5","Išlaidų pavadinimas",null,null,null,null,0,null,0]
["4.4.6","Išlaidų pavadinimas",null,null,null,null,0,null,0]
["4.4.7","Išlaidų pavadinimas",null,null,null,null,0,null,0]
["4.4.8","Išlaidų pavadinimas",null,null,null,null,0,null,0]
["4.4.9","Išlaidų pavadinimas",null,null,null,null,0,null,0]
["4.4.10","Išlaidų pavadinimas",null,null,null,null,0,null,0]
["4.4.11","Išlaidų pavadinimas",null,null,null,null,0,null,0]
["4.4.12","Išlaidų pavadinimas",null,null,null,null,0,null,0]
["4.4.13","Išlaidų pavadinimas",null,null,null,null,0,null,0]
["4.4.14","Išlaidų pavadinimas",null,null,null,null,0,null,0]
["4.4.15","Išlaidų pavadinimas",null,null,null,null,0,null,0]
["4.4.16","Išlaidų pavadinimas",null,null,null,null,0,null,0]
["4.4.17","Išlaidų pavadinimas",null,null,null,null,0,null,0]
["4.4.18","Išlaidų pavadinimas",null,null,null,null,0,null,0]
["4.4.19","Išlaidų pavadinimas",null,null,null,null,0,null,0]
["4.4.20","Išlaidų pavadinimas",null,null,null,null,0,null,0]
["Iš viso tinkamų finansuoti išlaidų:",null,null,null,null,null,{"$f":"G9+G32","v":0},null,{"$f":"I9+I32","v":0}]

{"sheet":"5","index":6,"n_rows":77,"n_cols":10,"rows_kept":77,"cut":false,"hidden":false,"merged":[[73,1,73,2],[74,1,74,2],[75,1,75,2],[76,0,76,5],[67,1,67,2],[68,1,68,2],[69,1,69,2],[70,1,70,2],[71,1,71,2],[72,1,72,2],[66,1,66,2],[55,1,55,2],[56,1,56,2],[57,1,57,2],[58,1,58,2],[59,1,59,2],[60,1,60,2],[61,1,61,2],[62,1,62,2],[63,1,63,2],[64,1,64,2],[65,1,65,2],[54,1,54,2],[43,1,43,2],[44,1,44,2],[45,1,45,2],[46,1,46,2],[47,1,47,2],[48,1,48,2],[49,1,49,2],[50,1,50,2],[51,1,51,2],[52,1,52,2],[53,1,53,2],[42,1,42,2],[31,1,31,5],[32,1,32,2],[33,1,33,2],[34,1,34,2],[35,1,35,2],[36,1,36,2],[37,1,37,2],[38,1,38,2],[39,1,39,2],[40,1,40,2],[41,1,41,2],[30,1,30,2],[19,1,19,2],[20,1,20,2],[21,1,21,2],[22,1,22,2],[23,1,23,2],[24,1,24,2],[25,1,25,2],[26,1,26,2],[27,1,27,2],[28,1,28,2],[29,1,29,2],[18,1,18,2],[7,1,7,2],[8,1,8,5],[9,1,9,2],[10,1,10,2],[11,1,11,2],[12,1,12,2],[13,1,13,2],[14,1,14,2],[15,1,15,2],[16,1,16,2],[17,1,17,2],[1,0,1,2],[1,3,1,9],[2,3,2,4],[2,5,2,6],[3,0,3,2],[3,3,3,8]]}
[null,null,"Fizinio rodiklio Nr.:"]
["Fizinio rodiklio pavadinimas:"]
[null,null,"Fizinio rodiklio matavimo vnt.:",null,null,"Fizinio rodiklio vnt. skaičius:"]
["Juridinis asmuo (pareiškėjas, partneris), atsakingas už fizinį rodiklį:"]
[]
[null,null,"Finansavimo intensyvumas:",null,null,null,null,"Pasirinkite biudžeto išlaidų kategoriją:"]
[]
["Eil. Nr.","Išlaidų kategorijos pavadinimas",null,"Matavimo vnt.","Kiekis","Vieneto kaina be PVM, Eur","Tinkamų finansuoti išlaidų suma be PVM, Eur","Infrastruktūros naudojimo laiko dalis, skirta išimtinai MTEP, proc.","Finansavimo suma, Eur","Išlaidų pagrindimo dokumentų (ne mažiau kaip 3 komercinių pasiūlymų, sąmatų, techninių projektų ir pan.) pavadinimas, data ir Nr."]
[3,"STATYBA, REKONSTRAVIMAS, REMONTAS IR KITI DARBAI \n(MTEP ir inovacijų infrastruktūrai priskirtinų statinių statybos, rekonstravimo, kapitalinio remonto išlaidos)",null,null,null,null,{"$f":"G10+G21","v":0},null,{"$f":"I10+I21","v":0}]
["3.1.","MTEP ir inovacijų infrastruktūrai priskirtinų statinių statybos išlaidos",null,null,null,null,{"$f":"SUM(G11:G20)","v":0},null,{"$f":"SUM(I11:I20)","v":0}]
["3.1.1","Išlaidų pavadinimas",null,null,null,null,{"$f":"ROUND(E11*F11,2)","v":0},null,{"$f":"ROUND(G11*$D$6*H11,2)","v":0}]
["3.1.2","Išlaidų pavadinimas",null,null,null,null,0,null,{"$f":"ROUND(G12*$D$6*H12,2)","v":0}]
["3.1.3","Išlaidų pavadinimas",null,null,null,null,0,null,0]
["3.1.4","Išlaidų pavadinimas",null,null,null,null,0,null,0]
["3.1.5","Išlaidų pavadinimas",null,null,null,null,0,null,0]
["3.1.6","Išlaidų pavadinimas",null,null,null,null,0,null,{"$f":"ROUND(G16*$D$6*H16,2)","v":0}]
["3.1.7","Išlaidų pavadinimas",null,null,null,null,0,null,{"$f":"ROUND(G17*$D$6*H17,2)","v":0}]
["3.1.8","Išlaidų pavadinimas",null,null,null,null,0,null,{"$f":"ROUND(G18*$D$6*H18,2)","v":0}]
["3.1.9","Išlaidų pavadinimas",null,null,null,null,0,null,{"$f":"ROUND(G19*$D$6*H19,2)","v":0}]
["3.1.10","Išlaidų pavadinimas",null,null,null,null,{"$f":"ROUND(E20*F20,2)","v":0},null,{"$f":"ROUND(G20*$D$6*H20,2)","v":0}]
["3.2.","MTEP ir inovacijų infrastruktūrai priskirtinų statinių rekonstravimo, kapitalinio remonto išlaidos",null,null,null,null,{"$f":"SUM(G22:G31)","v":0},null,{"$f":"SUM(I22:I31)","v":0}]
["3.2.1","Išlaidų pavadinimas",null,null,null,null,{"$f":"ROUND(E22*F22,2)","v":0},null,0]
["3.2.2","Išlaidų pavadinimas",null,null,null,null,0,null,{"$f":"ROUND(G23*$D$6*H23,2)","v":0}]
["3.2.3","Išlaidų pavadinimas",null,null,null,null,0,null,0]
["3.2.4","Išlaidų pavadinimas",null,null,null,null,0,null,0]
["3.2.5","Išlaidų pavadinimas",null,null,null,null,0,null,0]
["3.2.6","Išlaidų pavadinimas",null,null,null,null,0,null,0]
["3.2.7","Išlaidų pavadinimas",null,null,null,null,0,null,0]
["3.2.8","Išlaidų pavadinimas",null,null,null,null,0,null,0]
["3.2.9","Išlaidų pavadinimas",null,null,null,null,0,null,0]
["3.2.10","Išlaidų pavadinimas",null,null,null,null,0,null,0]
[4,"ĮRANGA, ĮRENGINIAI IR KITAS TURTAS",null,null,null,null,{"$f":"SUM(G33,G44,G50,G56)","v":0},null,{"$f":"SUM(I33,I44,I50,I56)","v":0}]
["4.1","Baldai (tiesiogiai MTEP veikloms vykdyti bei kuriamoms tyrėjų ir pagalbinio personalo darbo vietoms aprūpinti būtini baldai)",null,null,null,null,{"$f":"SUM(G34:G43)","v":0},null,{"$f":"SUM(I34:I43)","v":0}]
["4.1.1","Išlaidų pavadinimas",null,null,null,null,0,null,{"$f":"ROUND(G34*$D$6*H34,2)","v":0}]
["4.1.2","Išlaidų pavadinimas",null,null,null,null,0,null,{"$f":"ROUND(G35*$D$6*H35,2)","v":0}]
["4.1.3","Išlaidų pavadinimas",null,null,null,null,0,null,0]
["4.1.4","Išlaidų pavadinimas",null,null,null,null,0,null,0]
["4.1.5","Išlaidų pavadinimas",null,null,null,null,0,null,0]
["4.1.6","Išlaidų pavadinimas",null,null,null,null,0,null,0]
["4.1.7","Išlaidų pavadinimas",null,null,null,null,0,null,0]
["4.1.8","Išlaidų pavadinimas",null,null,null,null,0,null,0]
["4.1.9","Išlaidų pavadinimas",null,null,null,null,0,null,0]
["4.1.10","Išlaidų pavadinimas",null,null,null,null,0,null,0]
["4.2","Kompiuterinė technika",null,null,null,null,{"$f":"SUM(G45:G49)","v":0},null,{"$f":"SUM(I45:I49)","v":0}]
["4.2.1","Išlaidų pavadinimas",null,null,null,null,0,null,{"$f":"ROUND(G45*$D$6*H45,2)","v":0}]
["4.2.2","Išlaidų pavadinimas",null,null,null,null,0,null,{"$f":"ROUND(G46*$D$6*H46,2)","v":0}]
["4.2.3","Išlaidų pavadinimas",null,null,null,null,0,null,{"$f":"ROUND(G47*$D$6*H47,2)","v":0}]
["4.2.4","Išlaidų pavadinimas",null,null,null,null,0,null,{"$f":"ROUND(G48*$D$6*H48,2)","v":0}]
["4.2.5","Išlaidų pavadinimas",null,null,null,null,0,null,{"$f":"ROUND(G49*$D$6*H49,2)","v":0}]
["4.3","Patentai, licencijos, susijusios su MTEP ir inovacijų infrastruktūra ar jos panaudojimu",null,null,null,null,{"$f":"SUM(G51:G55)","v":0},null,{"$f":"SUM(I51:I55)","v":0}]
["4.3.1","Išlaidų pavadinimas",null,null,null,null,0,null,{"$f":"ROUND(G51*$D$6*H51,2)","v":0}]
["4.3.2","Išlaidų pavadinimas",null,null,null,null,0,null,{"$f":"ROUND(G52*$D$6*H52,2)","v":0}]
["4.3.3","Išlaidų pavadinimas",null,null,null,null,0,null,{"$f":"ROUND(G53*$D$6*H53,2)","v":0}]
["4.3.4","Išlaidų pavadinimas",null,null,null,null,0,null,{"$f":"ROUND(G54*$D$6*H54,2)","v":0}]
["4.3.5","Išlaidų pavadinimas",null,null,null,null,0,null,{"$f":"ROUND(G55*$D$6*H55,2)","v":0}]
["4.4","Kiti įrengimai, įranga, prietaisai, įrankiai ir įrenginiai, priskirtini MTEP ir inovacijų infrastruktūrai",null,null,null,null,{"$f":"SUM(G57:G76)","v":0},null,{"$f":"SUM(I57:I76)","v":0}]
["4.4.1","Išlaidų pavadinimas",null,null,null,null,0,null,{"$f":"ROUND(G57*$D$6*H57,2)","v":0}]
["4.4.2","Išlaidų pavadinimas",null,null,null,null,0,null,{"$f":"ROUND(G58*$D$6*H58,2)","v":0}]
["4.4.3","Išlaidų pavadinimas",null,null,null,null,0,null,0]
["4.4.4","Išlaidų pavadinimas",null,null,null,null,0,null,0]
["4.4.5","Išlaidų pavadinimas",null,null,null,null,0,null,0]
["4.4.6","Išlaidų pavadinimas",null,null,null,null,0,null,0]
["4.4.7","Išlaidų pavadinimas",null,null,null,null,0,null,0]
["4.4.8","Išlaidų pavadinimas",null,null,null,null,0,null,0]
["4.4.9","Išlaidų pavadinimas",null,null,null,null,0,null,0]
["4.4.10","Išlaidų pavadinimas",null,null,null,null,0,null,0]
["4.4.11","Išlaidų pavadinimas",null,null,null,null,0,null,0]
["4.4.12","Išlaidų pavadinimas",null,null,null,null,0,null,0]
["4.4.13","Išlaidų pavadinimas",null,null,null,null,0,null,0]
["4.4.14","Išlaidų pavadinimas",null,null,null,null,0,null,0]
["4.4.15","Išlaidų pavadinimas",null,null,null,null,0,null,0]
["4.4.16","Išlaidų pavadinimas",null,null,null,null,0,null,0]
["4.4.17","Išlaidų pavadinimas",null,null,null,null,0,null,0]
["4.4.18","Išlaidų pavadinimas",null,null,null,null,0,null,0]
["4.4.19","Išlaidų pavadinimas",null,null,null,null,0,null,0]
["4.4.20","Išlaidų pavadinimas",null,null,null,null,0,null,0]
["Iš viso tinkamų finansuoti išlaidų:",null,null,null,null,null,{"$f":"G9+G32","v":0},null,{"$f":"I9+I32","v":0}]

{"sheet":"6","index":7,"n_rows":77,"n_cols":10,"rows_kept":77,"cut":false,"hidden":false,"merged":[[73,1,73,2],[74,1,74,2],[75,1,75,2],[76,0,76,5],[67,1,67,2],[68,1,68,2],[69,1,69,2],[70,1,70,2],[71,1,71,2],[72,1,72,2],[66,1,66,2],[55,1,55,2],[56,1,56,2],[57,1,57,2],[58,1,58,2],[59,1,59,2],[60,1,60,2],[61,1,61,2],[62,1,62,2],[63,1,63,2],[64,1,64,2],[65,1,65,2],[54,1,54,2],[43,1,43,2],[44,1,44,2],[45,1,45,2],[46,1,46,2],[47,1,47,2],[48,1,48,2],[49,1,49,2],[50,1,50,2],[51,1,51,2],[52,1,52,2],[53,1,53,2],[42,1,42,2],[31,1,31,5],[32,1,32,2],[33,1,33,2],[34,1,34,2],[35,1,35,2],[36,1,36,2],[37,1,37,2],[38,1,38,2],[39,1,39,2],[40,1,40,2],[41,1,41,2],[30,1,30,2],[19,1,19,2],[20,1,20,2],[21,1,21,2],[22,1,22,2],[23,1,23,2],[24,1,24,2],[25,1,25,2],[26,1,26,2],[27,1,27,2],[28,1,28,2],[29,1,29,2],[18,1,18,2],[7,1,7,2],[8,1,8,5],[9,1,9,2],[10,1,10,2],[11,1,11,2],[12,1,12,2],[13,1,13,2],[14,1,14,2],[15,1,15,2],[16,1,16,2],[17,1,17,2],[1,0,1,2],[1,3,1,9],[2,3,2,4],[2,5,2,6],[3,0,3,2],[3,3,3,8]]}
[null,null,"Fizinio rodiklio Nr.:"]
["Fizinio rodiklio pavadinimas:"]
[null,null,"Fizinio rodiklio matavimo vnt.:",null,null,"Fizinio rodiklio vnt. skaičius:"]
["Juridinis asmuo (pareiškėjas, partneris), atsakingas už fizinį rodiklį:"]
[]
[null,null,"Finansavimo intensyvumas:",null,null,null,null,"Pasirinkite biudžeto išlaidų kategoriją:"]
[]
["Eil. Nr.","Išlaidų kategorijos pavadinimas",null,"Matavimo vnt.","Kiekis","Vieneto kaina be PVM, Eur","Tinkamų finansuoti išlaidų suma be PVM, Eur","Infrastruktūros naudojimo laiko dalis, skirta išimtinai MTEP, proc.","Finansavimo suma, Eur","Išlaidų pagrindimo dokumentų (ne mažiau kaip 3 komercinių pasiūlymų, sąmatų, techninių projektų ir pan.) pavadinimas, data ir Nr."]
[3,"STATYBA, REKONSTRAVIMAS, REMONTAS IR KITI DARBAI \n(MTEP ir inovacijų infrastruktūrai priskirtinų statinių statybos, rekonstravimo, kapitalinio remonto išlaidos)",null,null,null,null,{"$f":"G10+G21","v":0},null,{"$f":"I10+I21","v":0}]
["3.1.","MTEP ir inovacijų infrastruktūrai priskirtinų statinių statybos išlaidos",null,null,null,null,{"$f":"SUM(G11:G20)","v":0},null,{"$f":"SUM(I11:I20)","v":0}]
["3.1.1","Išlaidų pavadinimas",null,null,null,null,{"$f":"ROUND(E11*F11,2)","v":0},null,{"$f":"ROUND(G11*$D$6*H11,2)","v":0}]
["3.1.2","Išlaidų pavadinimas",null,null,null,null,0,null,{"$f":"ROUND(G12*$D$6*H12,2)","v":0}]
["3.1.3","Išlaidų pavadinimas",null,null,null,null,0,null,0]
["3.1.4","Išlaidų pavadinimas",null,null,null,null,0,null,0]
["3.1.5","Išlaidų pavadinimas",null,null,null,null,0,null,0]
["3.1.6","Išlaidų pavadinimas",null,null,null,null,0,null,{"$f":"ROUND(G16*$D$6*H16,2)","v":0}]
["3.1.7","Išlaidų pavadinimas",null,null,null,null,0,null,{"$f":"ROUND(G17*$D$6*H17,2)","v":0}]
["3.1.8","Išlaidų pavadinimas",null,null,null,null,0,null,{"$f":"ROUND(G18*$D$6*H18,2)","v":0}]
["3.1.9","Išlaidų pavadinimas",null,null,null,null,0,null,{"$f":"ROUND(G19*$D$6*H19,2)","v":0}]
["3.1.10","Išlaidų pavadinimas",null,null,null,null,{"$f":"ROUND(E20*F20,2)","v":0},null,{"$f":"ROUND(G20*$D$6*H20,2)","v":0}]
["3.2.","MTEP ir inovacijų infrastruktūrai priskirtinų statinių rekonstravimo, kapitalinio remonto išlaidos",null,null,null,null,{"$f":"SUM(G22:G31)","v":0},null,{"$f":"SUM(I22:I31)","v":0}]
["3.2.1","Išlaidų pavadinimas",null,null,null,null,{"$f":"ROUND(E22*F22,2)","v":0},null,0]
["3.2.2","Išlaidų pavadinimas",null,null,null,null,0,null,{"$f":"ROUND(G23*$D$6*H23,2)","v":0}]
["3.2.3","Išlaidų pavadinimas",null,null,null,null,0,null,0]
["3.2.4","Išlaidų pavadinimas",null,null,null,null,0,null,0]
["3.2.5","Išlaidų pavadinimas",null,null,null,null,0,null,0]
["3.2.6","Išlaidų pavadinimas",null,null,null,null,0,null,0]
["3.2.7","Išlaidų pavadinimas",null,null,null,null,0,null,0]
["3.2.8","Išlaidų pavadinimas",null,null,null,null,0,null,0]
["3.2.9","Išlaidų pavadinimas",null,null,null,null,0,null,0]
["3.2.10","Išlaidų pavadinimas",null,null,null,null,0,null,0]
[4,"ĮRANGA, ĮRENGINIAI IR KITAS TURTAS",null,null,null,null,{"$f":"SUM(G33,G44,G50,G56)","v":0},null,{"$f":"SUM(I33,I44,I50,I56)","v":0}]
["4.1","Baldai (tiesiogiai MTEP veikloms vykdyti bei kuriamoms tyrėjų ir pagalbinio personalo darbo vietoms aprūpinti būtini baldai)",null,null,null,null,{"$f":"SUM(G34:G43)","v":0},null,{"$f":"SUM(I34:I43)","v":0}]
["4.1.1","Išlaidų pavadinimas",null,null,null,null,0,null,{"$f":"ROUND(G34*$D$6*H34,2)","v":0}]
["4.1.2","Išlaidų pavadinimas",null,null,null,null,0,null,{"$f":"ROUND(G35*$D$6*H35,2)","v":0}]
["4.1.3","Išlaidų pavadinimas",null,null,null,null,0,null,0]
["4.1.4","Išlaidų pavadinimas",null,null,null,null,0,null,0]
["4.1.5","Išlaidų pavadinimas",null,null,null,null,0,null,0]
["4.1.6","Išlaidų pavadinimas",null,null,null,null,0,null,0]
["4.1.7","Išlaidų pavadinimas",null,null,null,null,0,null,0]
["4.1.8","Išlaidų pavadinimas",null,null,null,null,0,null,0]
["4.1.9","Išlaidų pavadinimas",null,null,null,null,0,null,0]
["4.1.10","Išlaidų pavadinimas",null,null,null,null,0,null,0]
["4.2","Kompiuterinė technika",null,null,null,null,{"$f":"SUM(G45:G49)","v":0},null,{"$f":"SUM(I45:I49)","v":0}]
["4.2.1","Išlaidų pavadinimas",null,null,null,null,0,null,{"$f":"ROUND(G45*$D$6*H45,2)","v":0}]
["4.2.2","Išlaidų pavadinimas",null,null,null,null,0,null,{"$f":"ROUND(G46*$D$6*H46,2)","v":0}]
["4.2.3","Išlaidų pavadinimas",null,null,null,null,0,null,{"$f":"ROUND(G47*$D$6*H47,2)","v":0}]
["4.2.4","Išlaidų pavadinimas",null,null,null,null,0,null,{"$f":"ROUND(G48*$D$6*H48,2)","v":0}]
["4.2.5","Išlaidų pavadinimas",null,null,null,null,0,null,{"$f":"ROUND(G49*$D$6*H49,2)","v":0}]
["4.3","Patentai, licencijos, susijusios su MTEP ir inovacijų infrastruktūra ar jos panaudojimu",null,null,null,null,{"$f":"SUM(G51:G55)","v":0},null,{"$f":"SUM(I51:I55)","v":0}]
["4.3.1","Išlaidų pavadinimas",null,null,null,null,0,null,{"$f":"ROUND(G51*$D$6*H51,2)","v":0}]
["4.3.2","Išlaidų pavadinimas",null,null,null,null,0,null,{"$f":"ROUND(G52*$D$6*H52,2)","v":0}]
["4.3.3","Išlaidų pavadinimas",null,null,null,null,0,null,{"$f":"ROUND(G53*$D$6*H53,2)","v":0}]
["4.3.4","Išlaidų pavadinimas",null,null,null,null,0,null,{"$f":"ROUND(G54*$D$6*H54,2)","v":0}]
["4.3.5","Išlaidų pavadinimas",null,null,null,null,0,null,{"$f":"ROUND(G55*$D$6*H55,2)","v":0}]
["4.4","Kiti įrengimai, įranga, prietaisai, įrankiai ir įrenginiai, priskirtini MTEP ir inovacijų infrastruktūrai",null,null,null,null,{"$f":"SUM(G57:G76)","v":0},null,{"$f":"SUM(I57:I76)","v":0}]
["4.4.1","Išlaidų pavadinimas",null,null,null,null,0,null,{"$f":"ROUND(G57*$D$6*H57,2)","v":0}]
["4.4.2","Išlaidų pavadinimas",null,null,null,null,0,null,{"$f":"ROUND(G58*$D$6*H58,2)","v":0}]
["4.4.3","Išlaidų pavadinimas",null,null,null,null,0,null,0]
["4.4.4","Išlaidų pavadinimas",null,null,null,null,0,null,0]
["4.4.5","Išlaidų pavadinimas",null,null,null,null,0,null,0]
["4.4.6","Išlaidų pavadinimas",null,null,null,null,0,null,0]
["4.4.7","Išlaidų pavadinimas",null,null,null,null,0,null,0]
["4.4.8","Išlaidų pavadinimas",null,null,null,null,0,null,0]
["4.4.9","Išlaidų pavadinimas",null,null,null,null,0,null,0]
["4.4.10","Išlaidų pavadinimas",null,null,null,null,0,null,0]
["4.4.11","Išlaidų pavadinimas",null,null,null,null,0,null,0]
["4.4.12","Išlaidų pavadinimas",null,null,null,null,0,null,0]
["4.4.13","Išlaidų pavadinimas",null,null,null,null,0,null,0]
["4.4.14","Išlaidų pavadinimas",null,null,null,null,0,null,0]
["4.4.15","Išlaidų pavadinimas",null,null,null,null,0,null,0]
["4.4.16","Išlaidų pavadinimas",null,null,null,null,0,null,0]
["4.4.17","Išlaidų pavadinimas",null,null,null,null,0,null,0]
["4.4.18","Išlaidų pavadinimas",null,null,null,null,0,null,0]
["4.4.19","Išlaidų pavadinimas",null,null,null,null,0,null,0]
["4.4.20","Išlaidų pavadinimas",null,null,null,null,0,null,0]
["Iš viso tinkamų finansuoti išlaidų:",null,null,null,null,null,{"$f":"G9+G32","v":0},null,{"$f":"I9+I32","v":0}]

{"sheet":"7","index":8,"n_rows":77,"n_cols":10,"rows_kept":77,"cut":false,"hidden":false,"merged":[[73,1,73,2],[74,1,74,2],[75,1,75,2],[76,0,76,5],[67,1,67,2],[68,1,68,2],[69,1,69,2],[70,1,70,2],[71,1,71,2],[72,1,72,2],[66,1,66,2],[55,1,55,2],[56,1,56,2],[57,1,57,2],[58,1,58,2],[59,1,59,2],[60,1,60,2],[61,1,61,2],[62,1,62,2],[63,1,63,2],[64,1,64,2],[65,1,65,2],[54,1,54,2],[43,1,43,2],[44,1,44,2],[45,1,45,2],[46,1,46,2],[47,1,47,2],[48,1,48,2],[49,1,49,2],[50,1,50,2],[51,1,51,2],[52,1,52,2],[53,1,53,2],[42,1,42,2],[31,1,31,5],[32,1,32,2],[33,1,33,2],[34,1,34,2],[35,1,35,2],[36,1,36,2],[37,1,37,2],[38,1,38,2],[39,1,39,2],[40,1,40,2],[41,1,41,2],[30,1,30,2],[19,1,19,2],[20,1,20,2],[21,1,21,2],[22,1,22,2],[23,1,23,2],[24,1,24,2],[25,1,25,2],[26,1,26,2],[27,1,27,2],[28,1,28,2],[29,1,29,2],[18,1,18,2],[7,1,7,2],[8,1,8,5],[9,1,9,2],[10,1,10,2],[11,1,11,2],[12,1,12,2],[13,1,13,2],[14,1,14,2],[15,1,15,2],[16,1,16,2],[17,1,17,2],[1,0,1,2],[1,3,1,9],[2,3,2,4],[2,5,2,6],[3,0,3,2],[3,3,3,8]]}
[null,null,"Fizinio rodiklio Nr.:"]
["Fizinio rodiklio pavadinimas:"]
[null,null,"Fizinio rodiklio matavimo vnt.:",null,null,"Fizinio rodiklio vnt. skaičius:"]
["Juridinis asmuo (pareiškėjas, partneris), atsakingas už fizinį rodiklį:"]
[]
[null,null,"Finansavimo intensyvumas:",null,null,null,null,"Pasirinkite biudžeto išlaidų kategoriją:"]
[]
["Eil. Nr.","Išlaidų kategorijos pavadinimas",null,"Matavimo vnt.","Kiekis","Vieneto kaina be PVM, Eur","Tinkamų finansuoti išlaidų suma be PVM, Eur","Infrastruktūros naudojimo laiko dalis, skirta išimtinai MTEP, proc.","Finansavimo suma, Eur","Išlaidų pagrindimo dokumentų (ne mažiau kaip 3 komercinių pasiūlymų, sąmatų, techninių projektų ir pan.) pavadinimas, data ir Nr."]
[3,"STATYBA, REKONSTRAVIMAS, REMONTAS IR KITI DARBAI \n(MTEP ir inovacijų infrastruktūrai priskirtinų statinių statybos, rekonstravimo, kapitalinio remonto išlaidos)",null,null,null,null,{"$f":"G10+G21","v":0},null,{"$f":"I10+I21","v":0}]
["3.1.","MTEP ir inovacijų infrastruktūrai priskirtinų statinių statybos išlaidos",null,null,null,null,{"$f":"SUM(G11:G20)","v":0},null,{"$f":"SUM(I11:I20)","v":0}]
["3.1.1","Išlaidų pavadinimas",null,null,null,null,{"$f":"ROUND(E11*F11,2)","v":0},null,{"$f":"ROUND(G11*$D$6*H11,2)","v":0}]
["3.1.2","Išlaidų pavadinimas",null,null,null,null,0,null,{"$f":"ROUND(G12*$D$6*H12,2)","v":0}]
["3.1.3","Išlaidų pavadinimas",null,null,null,null,0,null,0]
["3.1.4","Išlaidų pavadinimas",null,null,null,null,0,null,0]
["3.1.5","Išlaidų pavadinimas",null,null,null,null,0,null,0]
["3.1.6","Išlaidų pavadinimas",null,null,null,null,0,null,{"$f":"ROUND(G16*$D$6*H16,2)","v":0}]
["3.1.7","Išlaidų pavadinimas",null,null,null,null,0,null,{"$f":"ROUND(G17*$D$6*H17,2)","v":0}]
["3.1.8","Išlaidų pavadinimas",null,null,null,null,0,null,{"$f":"ROUND(G18*$D$6*H18,2)","v":0}]
["3.1.9","Išlaidų pavadinimas",null,null,null,null,0,null,{"$f":"ROUND(G19*$D$6*H19,2)","v":0}]
["3.1.10","Išlaidų pavadinimas",null,null,null,null,{"$f":"ROUND(E20*F20,2)","v":0},null,{"$f":"ROUND(G20*$D$6*H20,2)","v":0}]
["3.2.","MTEP ir inovacijų infrastruktūrai priskirtinų statinių rekonstravimo, kapitalinio remonto išlaidos",null,null,null,null,{"$f":"SUM(G22:G31)","v":0},null,{"$f":"SUM(I22:I31)","v":0}]
["3.2.1","Išlaidų pavadinimas",null,null,null,null,{"$f":"ROUND(E22*F22,2)","v":0},null,0]
["3.2.2","Išlaidų pavadinimas",null,null,null,null,0,null,{"$f":"ROUND(G23*$D$6*H23,2)","v":0}]
["3.2.3","Išlaidų pavadinimas",null,null,null,null,0,null,0]
["3.2.4","Išlaidų pavadinimas",null,null,null,null,0,null,0]
["3.2.5","Išlaidų pavadinimas",null,null,null,null,0,null,0]
["3.2.6","Išlaidų pavadinimas",null,null,null,null,0,null,0]
["3.2.7","Išlaidų pavadinimas",null,null,null,null,0,null,0]
["3.2.8","Išlaidų pavadinimas",null,null,null,null,0,null,0]
["3.2.9","Išlaidų pavadinimas",null,null,null,null,0,null,0]
["3.2.10","Išlaidų pavadinimas",null,null,null,null,0,null,0]
[4,"ĮRANGA, ĮRENGINIAI IR KITAS TURTAS",null,null,null,null,{"$f":"SUM(G33,G44,G50,G56)","v":0},null,{"$f":"SUM(I33,I44,I50,I56)","v":0}]
["4.1","Baldai (tiesiogiai MTEP veikloms vykdyti bei kuriamoms tyrėjų ir pagalbinio personalo darbo vietoms aprūpinti būtini baldai)",null,null,null,null,{"$f":"SUM(G34:G43)","v":0},null,{"$f":"SUM(I34:I43)","v":0}]
["4.1.1","Išlaidų pavadinimas",null,null,null,null,0,null,{"$f":"ROUND(G34*$D$6*H34,2)","v":0}]
["4.1.2","Išlaidų pavadinimas",null,null,null,null,0,null,{"$f":"ROUND(G35*$D$6*H35,2)","v":0}]
["4.1.3","Išlaidų pavadinimas",null,null,null,null,0,null,0]
["4.1.4","Išlaidų pavadinimas",null,null,null,null,0,null,0]
["4.1.5","Išlaidų pavadinimas",null,null,null,null,0,null,0]
["4.1.6","Išlaidų pavadinimas",null,null,null,null,0,null,0]
["4.1.7","Išlaidų pavadinimas",null,null,null,null,0,null,0]
["4.1.8","Išlaidų pavadinimas",null,null,null,null,0,null,0]
["4.1.9","Išlaidų pavadinimas",null,null,null,null,0,null,0]
["4.1.10","Išlaidų pavadinimas",null,null,null,null,0,null,0]
["4.2","Kompiuterinė technika",null,null,null,null,{"$f":"SUM(G45:G49)","v":0},null,{"$f":"SUM(I45:I49)","v":0}]
["4.2.1","Išlaidų pavadinimas",null,null,null,null,0,null,{"$f":"ROUND(G45*$D$6*H45,2)","v":0}]
["4.2.2","Išlaidų pavadinimas",null,null,null,null,0,null,{"$f":"ROUND(G46*$D$6*H46,2)","v":0}]
["4.2.3","Išlaidų pavadinimas",null,null,null,null,0,null,{"$f":"ROUND(G47*$D$6*H47,2)","v":0}]
["4.2.4","Išlaidų pavadinimas",null,null,null,null,0,null,{"$f":"ROUND(G48*$D$6*H48,2)","v":0}]
["4.2.5","Išlaidų pavadinimas",null,null,null,null,0,null,{"$f":"ROUND(G49*$D$6*H49,2)","v":0}]
["4.3","Patentai, licencijos, susijusios su MTEP ir inovacijų infrastruktūra ar jos panaudojimu",null,null,null,null,{"$f":"SUM(G51:G55)","v":0},null,{"$f":"SUM(I51:I55)","v":0}]
["4.3.1","Išlaidų pavadinimas",null,null,null,null,0,null,{"$f":"ROUND(G51*$D$6*H51,2)","v":0}]
["4.3.2","Išlaidų pavadinimas",null,null,null,null,0,null,{"$f":"ROUND(G52*$D$6*H52,2)","v":0}]
["4.3.3","Išlaidų pavadinimas",null,null,null,null,0,null,{"$f":"ROUND(G53*$D$6*H53,2)","v":0}]
["4.3.4","Išlaidų pavadinimas",null,null,null,null,0,null,{"$f":"ROUND(G54*$D$6*H54,2)","v":0}]
["4.3.5","Išlaidų pavadinimas",null,null,null,null,0,null,{"$f":"ROUND(G55*$D$6*H55,2)","v":0}]
["4.4","Kiti įrengimai, įranga, prietaisai, įrankiai ir įrenginiai, priskirtini MTEP ir inovacijų infrastruktūrai",null,null,null,null,{"$f":"SUM(G57:G76)","v":0},null,{"$f":"SUM(I57:I76)","v":0}]
["4.4.1","Išlaidų pavadinimas",null,null,null,null,0,null,{"$f":"ROUND(G57*$D$6*H57,2)","v":0}]
["4.4.2","Išlaidų pavadinimas",null,null,null,null,0,null,{"$f":"ROUND(G58*$D$6*H58,2)","v":0}]
["4.4.3","Išlaidų pavadinimas",null,null,null,null,0,null,0]
["4.4.4","Išlaidų pavadinimas",null,null,null,null,0,null,0]
["4.4.5","Išlaidų pavadinimas",null,null,null,null,0,null,0]
["4.4.6","Išlaidų pavadinimas",null,null,null,null,0,null,0]
["4.4.7","Išlaidų pavadinimas",null,null,null,null,0,null,0]
["4.4.8","Išlaidų pavadinimas",null,null,null,null,0,null,0]
["4.4.9","Išlaidų pavadinimas",null,null,null,null,0,null,0]
["4.4.10","Išlaidų pavadinimas",null,null,null,null,0,null,0]
["4.4.11","Išlaidų pavadinimas",null,null,null,null,0,null,0]
["4.4.12","Išlaidų pavadinimas",null,null,null,null,0,null,0]
["4.4.13","Išlaidų pavadinimas",null,null,null,null,0,null,0]
["4.4.14","Išlaidų pavadinimas",null,null,null,null,0,null,0]
["4.4.15","Išlaidų pavadinimas",null,null,null,null,0,null,0]
["4.4.16","Išlaidų pavadinimas",null,null,null,null,0,null,0]
["4.4.17","Išlaidų pavadinimas",null,null,null,null,0,null,0]
["4.4.18","Išlaidų pavadinimas",null,null,null,null,0,null,0]
["4.4.19","Išlaidų pavadinimas",null,null,null,null,0,null,0]
["4.4.20","Išlaidų pavadinimas",null,null,null,null,0,null,0]
["Iš viso tinkamų finansuoti išlaidų:",null,null,null,null,null,{"$f":"G9+G32","v":0},null,{"$f":"I9+I32","v":0}]

{"sheet":"8","index":9,"n_rows":77,"n_cols":10,"rows_kept":77,"cut":false,"hidden":false,"merged":[[73,1,73,2],[74,1,74,2],[75,1,75,2],[76,0,76,5],[67,1,67,2],[68,1,68,2],[69,1,69,2],[70,1,70,2],[71,1,71,2],[72,1,72,2],[66,1,66,2],[55,1,55,2],[56,1,56,2],[57,1,57,2],[58,1,58,2],[59,1,59,2],[60,1,60,2],[61,1,61,2],[62,1,62,2],[63,1,63,2],[64,1,64,2],[65,1,65,2],[54,1,54,2],[43,1,43,2],[44,1,44,2],[45,1,45,2],[46,1,46,2],[47,1,47,2],[48,1,48,2],[49,1,49,2],[50,1,50,2],[51,1,51,2],[52,1,52,2],[53,1,53,2],[42,1,42,2],[31,1,31,5],[32,1,32,2],[33,1,33,2],[34,1,34,2],[35,1,35,2],[36,1,36,2],[37,1,37,2],[38,1,38,2],[39,1,39,2],[40,1,40,2],[41,1,41,2],[30,1,30,2],[19,1,19,2],[20,1,20,2],[21,1,21,2],[22,1,22,2],[23,1,23,2],[24,1,24,2],[25,1,25,2],[26,1,26,2],[27,1,27,2],[28,1,28,2],[29,1,29,2],[18,1,18,2],[7,1,7,2],[8,1,8,5],[9,1,9,2],[10,1,10,2],[11,1,11,2],[12,1,12,2],[13,1,13,2],[14,1,14,2],[15,1,15,2],[16,1,16,2],[17,1,17,2],[1,0,1,2],[1,3,1,9],[2,3,2,4],[2,5,2,6],[3,0,3,2],[3,3,3,8]]}
[null,null,"Fizinio rodiklio Nr.:"]
["Fizinio rodiklio pavadinimas:"]
[null,null,"Fizinio rodiklio matavimo vnt.:",null,null,"Fizinio rodiklio vnt. skaičius:"]
["Juridinis asmuo (pareiškėjas, partneris), atsakingas už fizinį rodiklį:"]
[]
[null,null,"Finansavimo intensyvumas:",null,null,null,null,"Pasirinkite biudžeto išlaidų kategoriją:"]
[]
["Eil. Nr.","Išlaidų kategorijos pavadinimas",null,"Matavimo vnt.","Kiekis","Vieneto kaina be PVM, Eur","Tinkamų finansuoti išlaidų suma be PVM, Eur","Infrastruktūros naudojimo laiko dalis, skirta išimtinai MTEP, proc.","Finansavimo suma, Eur","Išlaidų pagrindimo dokumentų (ne mažiau kaip 3 komercinių pasiūlymų, sąmatų, techninių projektų ir pan.) pavadinimas, data ir Nr."]
[3,"STATYBA, REKONSTRAVIMAS, REMONTAS IR KITI DARBAI \n(MTEP ir inovacijų infrastruktūrai priskirtinų statinių statybos, rekonstravimo, kapitalinio remonto išlaidos)",null,null,null,null,{"$f":"G10+G21","v":0},null,{"$f":"I10+I21","v":0}]
["3.1.","MTEP ir inovacijų infrastruktūrai priskirtinų statinių statybos išlaidos",null,null,null,null,{"$f":"SUM(G11:G20)","v":0},null,{"$f":"SUM(I11:I20)","v":0}]
["3.1.1","Išlaidų pavadinimas",null,null,null,null,{"$f":"ROUND(E11*F11,2)","v":0},null,{"$f":"ROUND(G11*$D$6*H11,2)","v":0}]
["3.1.2","Išlaidų pavadinimas",null,null,null,null,0,null,{"$f":"ROUND(G12*$D$6*H12,2)","v":0}]
["3.1.3","Išlaidų pavadinimas",null,null,null,null,0,null,0]
["3.1.4","Išlaidų pavadinimas",null,null,null,null,0,null,0]
["3.1.5","Išlaidų pavadinimas",null,null,null,null,0,null,0]
["3.1.6","Išlaidų pavadinimas",null,null,null,null,0,null,{"$f":"ROUND(G16*$D$6*H16,2)","v":0}]
["3.1.7","Išlaidų pavadinimas",null,null,null,null,0,null,{"$f":"ROUND(G17*$D$6*H17,2)","v":0}]
["3.1.8","Išlaidų pavadinimas",null,null,null,null,0,null,{"$f":"ROUND(G18*$D$6*H18,2)","v":0}]
["3.1.9","Išlaidų pavadinimas",null,null,null,null,0,null,{"$f":"ROUND(G19*$D$6*H19,2)","v":0}]
["3.1.10","Išlaidų pavadinimas",null,null,null,null,{"$f":"ROUND(E20*F20,2)","v":0},null,{"$f":"ROUND(G20*$D$6*H20,2)","v":0}]
["3.2.","MTEP ir inovacijų infrastruktūrai priskirtinų statinių rekonstravimo, kapitalinio remonto išlaidos",null,null,null,null,{"$f":"SUM(G22:G31)","v":0},null,{"$f":"SUM(I22:I31)","v":0}]
["3.2.1","Išlaidų pavadinimas",null,null,null,null,{"$f":"ROUND(E22*F22,2)","v":0},null,0]
["3.2.2","Išlaidų pavadinimas",null,null,null,null,0,null,{"$f":"ROUND(G23*$D$6*H23,2)","v":0}]
["3.2.3","Išlaidų pavadinimas",null,null,null,null,0,null,0]
["3.2.4","Išlaidų pavadinimas",null,null,null,null,0,null,0]
["3.2.5","Išlaidų pavadinimas",null,null,null,null,0,null,0]
["3.2.6","Išlaidų pavadinimas",null,null,null,null,0,null,0]
["3.2.7","Išlaidų pavadinimas",null,null,null,null,0,null,0]
["3.2.8","Išlaidų pavadinimas",null,null,null,null,0,null,0]
["3.2.9","Išlaidų pavadinimas",null,null,null,null,0,null,0]
["3.2.10","Išlaidų pavadinimas",null,null,null,null,0,null,0]
[4,"ĮRANGA, ĮRENGINIAI IR KITAS TURTAS",null,null,null,null,{"$f":"SUM(G33,G44,G50,G56)","v":0},null,{"$f":"SUM(I33,I44,I50,I56)","v":0}]
["4.1","Baldai (tiesiogiai MTEP veikloms vykdyti bei kuriamoms tyrėjų ir pagalbinio personalo darbo vietoms aprūpinti būtini baldai)",null,null,null,null,{"$f":"SUM(G34:G43)","v":0},null,{"$f":"SUM(I34:I43)","v":0}]
["4.1.1","Išlaidų pavadinimas",null,null,null,null,0,null,{"$f":"ROUND(G34*$D$6*H34,2)","v":0}]
["4.1.2","Išlaidų pavadinimas",null,null,null,null,0,null,{"$f":"ROUND(G35*$D$6*H35,2)","v":0}]
["4.1.3","Išlaidų pavadinimas",null,null,null,null,0,null,0]
["4.1.4","Išlaidų pavadinimas",null,null,null,null,0,null,0]
["4.1.5","Išlaidų pavadinimas",null,null,null,null,0,null,0]
["4.1.6","Išlaidų pavadinimas",null,null,null,null,0,null,0]
["4.1.7","Išlaidų pavadinimas",null,null,null,null,0,null,0]
["4.1.8","Išlaidų pavadinimas",null,null,null,null,0,null,0]
["4.1.9","Išlaidų pavadinimas",null,null,null,null,0,null,0]
["4.1.10","Išlaidų pavadinimas",null,null,null,null,0,null,0]
["4.2","Kompiuterinė technika",null,null,null,null,{"$f":"SUM(G45:G49)","v":0},null,{"$f":"SUM(I45:I49)","v":0}]
["4.2.1","Išlaidų pavadinimas",null,null,null,null,0,null,{"$f":"ROUND(G45*$D$6*H45,2)","v":0}]
["4.2.2","Išlaidų pavadinimas",null,null,null,null,0,null,{"$f":"ROUND(G46*$D$6*H46,2)","v":0}]
["4.2.3","Išlaidų pavadinimas",null,null,null,null,0,null,{"$f":"ROUND(G47*$D$6*H47,2)","v":0}]
["4.2.4","Išlaidų pavadinimas",null,null,null,null,0,null,{"$f":"ROUND(G48*$D$6*H48,2)","v":0}]
["4.2.5","Išlaidų pavadinimas",null,null,null,null,0,null,{"$f":"ROUND(G49*$D$6*H49,2)","v":0}]
["4.3","Patentai, licencijos, susijusios su MTEP ir inovacijų infrastruktūra ar jos panaudojimu",null,null,null,null,{"$f":"SUM(G51:G55)","v":0},null,{"$f":"SUM(I51:I55)","v":0}]
["4.3.1","Išlaidų pavadinimas",null,null,null,null,0,null,{"$f":"ROUND(G51*$D$6*H51,2)","v":0}]
["4.3.2","Išlaidų pavadinimas",null,null,null,null,0,null,{"$f":"ROUND(G52*$D$6*H52,2)","v":0}]
["4.3.3","Išlaidų pavadinimas",null,null,null,null,0,null,{"$f":"ROUND(G53*$D$6*H53,2)","v":0}]
["4.3.4","Išlaidų pavadinimas",null,null,null,null,0,null,{"$f":"ROUND(G54*$D$6*H54,2)","v":0}]
["4.3.5","Išlaidų pavadinimas",null,null,null,null,0,null,{"$f":"ROUND(G55*$D$6*H55,2)","v":0}]
["4.4","Kiti įrengimai, įranga, prietaisai, įrankiai ir įrenginiai, priskirtini MTEP ir inovacijų infrastruktūrai",null,null,null,null,{"$f":"SUM(G57:G76)","v":0},null,{"$f":"SUM(I57:I76)","v":0}]
["4.4.1","Išlaidų pavadinimas",null,null,null,null,0,null,{"$f":"ROUND(G57*$D$6*H57,2)","v":0}]
["4.4.2","Išlaidų pavadinimas",null,null,null,null,0,null,{"$f":"ROUND(G58*$D$6*H58,2)","v":0}]
["4.4.3","Išlaidų pavadinimas",null,null,null,null,0,null,0]
["4.4.4","Išlaidų pavadinimas",null,null,null,null,0,null,0]
["4.4.5","Išlaidų pavadinimas",null,null,null,null,0,null,0]
["4.4.6","Išlaidų pavadinimas",null,null,null,null,0,null,0]
["4.4.7","Išlaidų pavadinimas",null,null,null,null,0,null,0]
["4.4.8","Išlaidų pavadinimas",null,null,null,null,0,null,0]
["4.4.9","Išlaidų pavadinimas",null,null,null,null,0,null,0]
["4.4.10","Išlaidų pavadinimas",null,null,null,null,0,null,0]
["4.4.11","Išlaidų pavadinimas",null,null,null,null,0,null,0]
["4.4.12","Išlaidų pavadinimas",null,null,null,null,0,null,0]
["4.4.13","Išlaidų pavadinimas",null,null,null,null,0,null,0]
["4.4.14","Išlaidų pavadinimas",null,null,null,null,0,null,0]
["4.4.15","Išlaidų pavadinimas",null,null,null,null,0,null,0]
["4.4.16","Išlaidų pavadinimas",null,null,null,null,0,null,0]
["4.4.17","Išlaidų pavadinimas",null,null,null,null,0,null,0]
["4.4.18","Išlaidų pavadinimas",null,null,null,null,0,null,0]
["4.4.19","Išlaidų pavadinimas",null,null,null,null,0,null,0]
["4.4.20","Išlaidų pavadinimas",null,null,null,null,0,null,0]
["Iš viso tinkamų finansuoti išlaidų:",null,null,null,null,null,{"$f":"G9+G32","v":0},null,{"$f":"I9+I32","v":0}]

{"sheet":"9","index":10,"n_rows":77,"n_cols":10,"rows_kept":77,"cut":false,"hidden":false,"merged":[[73,1,73,2],[74,1,74,2],[75,1,75,2],[76,0,76,5],[67,1,67,2],[68,1,68,2],[69,1,69,2],[70,1,70,2],[71,1,71,2],[72,1,72,2],[66,1,66,2],[55,1,55,2],[56,1,56,2],[57,1,57,2],[58,1,58,2],[59,1,59,2],[60,1,60,2],[61,1,61,2],[62,1,62,2],[63,1,63,2],[64,1,64,2],[65,1,65,2],[54,1,54,2],[43,1,43,2],[44,1,44,2],[45,1,45,2],[46,1,46,2],[47,1,47,2],[48,1,48,2],[49,1,49,2],[50,1,50,2],[51,1,51,2],[52,1,52,2],[53,1,53,2],[42,1,42,2],[31,1,31,5],[32,1,32,2],[33,1,33,2],[34,1,34,2],[35,1,35,2],[36,1,36,2],[37,1,37,2],[38,1,38,2],[39,1,39,2],[40,1,40,2],[41,1,41,2],[30,1,30,2],[19,1,19,2],[20,1,20,2],[21,1,21,2],[22,1,22,2],[23,1,23,2],[24,1,24,2],[25,1,25,2],[26,1,26,2],[27,1,27,2],[28,1,28,2],[29,1,29,2],[18,1,18,2],[7,1,7,2],[8,1,8,5],[9,1,9,2],[10,1,10,2],[11,1,11,2],[12,1,12,2],[13,1,13,2],[14,1,14,2],[15,1,15,2],[16,1,16,2],[17,1,17,2],[1,0,1,2],[1,3,1,9],[2,3,2,4],[2,5,2,6],[3,0,3,2],[3,3,3,8]]}
[null,null,"Fizinio rodiklio Nr.:"]
["Fizinio rodiklio pavadinimas:"]
[null,null,"Fizinio rodiklio matavimo vnt.:",null,null,"Fizinio rodiklio vnt. skaičius:"]
["Juridinis asmuo (pareiškėjas, partneris), atsakingas už fizinį rodiklį:"]
[]
[null,null,"Finansavimo intensyvumas:",null,null,null,null,"Pasirinkite biudžeto išlaidų kategoriją:"]
[]
["Eil. Nr.","Išlaidų kategorijos pavadinimas",null,"Matavimo vnt.","Kiekis","Vieneto kaina be PVM, Eur","Tinkamų finansuoti išlaidų suma be PVM, Eur","Infrastruktūros naudojimo laiko dalis, skirta išimtinai MTEP, proc.","Finansavimo suma, Eur","Išlaidų pagrindimo dokumentų (ne mažiau kaip 3 komercinių pasiūlymų, sąmatų, techninių projektų ir pan.) pavadinimas, data ir Nr."]
[3,"STATYBA, REKONSTRAVIMAS, REMONTAS IR KITI DARBAI \n(MTEP ir inovacijų infrastruktūrai priskirtinų statinių statybos, rekonstravimo, kapitalinio remonto išlaidos)",null,null,null,null,{"$f":"G10+G21","v":0},null,{"$f":"I10+I21","v":0}]
["3.1.","MTEP ir inovacijų infrastruktūrai priskirtinų statinių statybos išlaidos",null,null,null,null,{"$f":"SUM(G11:G20)","v":0},null,{"$f":"SUM(I11:I20)","v":0}]
["3.1.1","Išlaidų pavadinimas",null,null,null,null,{"$f":"ROUND(E11*F11,2)","v":0},null,{"$f":"ROUND(G11*$D$6*H11,2)","v":0}]
["3.1.2","Išlaidų pavadinimas",null,null,null,null,0,null,{"$f":"ROUND(G12*$D$6*H12,2)","v":0}]
["3.1.3","Išlaidų pavadinimas",null,null,null,null,0,null,0]
["3.1.4","Išlaidų pavadinimas",null,null,null,null,0,null,0]
["3.1.5","Išlaidų pavadinimas",null,null,null,null,0,null,0]
["3.1.6","Išlaidų pavadinimas",null,null,null,null,0,null,{"$f":"ROUND(G16*$D$6*H16,2)","v":0}]
["3.1.7","Išlaidų pavadinimas",null,null,null,null,0,null,{"$f":"ROUND(G17*$D$6*H17,2)","v":0}]
["3.1.8","Išlaidų pavadinimas",null,null,null,null,0,null,{"$f":"ROUND(G18*$D$6*H18,2)","v":0}]
["3.1.9","Išlaidų pavadinimas",null,null,null,null,0,null,{"$f":"ROUND(G19*$D$6*H19,2)","v":0}]
["3.1.10","Išlaidų pavadinimas",null,null,null,null,{"$f":"ROUND(E20*F20,2)","v":0},null,{"$f":"ROUND(G20*$D$6*H20,2)","v":0}]
["3.2.","MTEP ir inovacijų infrastruktūrai priskirtinų statinių rekonstravimo, kapitalinio remonto išlaidos",null,null,null,null,{"$f":"SUM(G22:G31)","v":0},null,{"$f":"SUM(I22:I31)","v":0}]
["3.2.1","Išlaidų pavadinimas",null,null,null,null,{"$f":"ROUND(E22*F22,2)","v":0},null,0]
["3.2.2","Išlaidų pavadinimas",null,null,null,null,0,null,{"$f":"ROUND(G23*$D$6*H23,2)","v":0}]
["3.2.3","Išlaidų pavadinimas",null,null,null,null,0,null,0]
["3.2.4","Išlaidų pavadinimas",null,null,null,null,0,null,0]
["3.2.5","Išlaidų pavadinimas",null,null,null,null,0,null,0]
["3.2.6","Išlaidų pavadinimas",null,null,null,null,0,null,0]
["3.2.7","Išlaidų pavadinimas",null,null,null,null,0,null,0]
["3.2.8","Išlaidų pavadinimas",null,null,null,null,0,null,0]
["3.2.9","Išlaidų pavadinimas",null,null,null,null,0,null,0]
["3.2.10","Išlaidų pavadinimas",null,null,null,null,0,null,0]
[4,"ĮRANGA, ĮRENGINIAI IR KITAS TURTAS",null,null,null,null,{"$f":"SUM(G33,G44,G50,G56)","v":0},null,{"$f":"SUM(I33,I44,I50,I56)","v":0}]
["4.1","Baldai (tiesiogiai MTEP veikloms vykdyti bei kuriamoms tyrėjų ir pagalbinio personalo darbo vietoms aprūpinti būtini baldai)",null,null,null,null,{"$f":"SUM(G34:G43)","v":0},null,{"$f":"SUM(I34:I43)","v":0}]
["4.1.1","Išlaidų pavadinimas",null,null,null,null,0,null,{"$f":"ROUND(G34*$D$6*H34,2)","v":0}]
["4.1.2","Išlaidų pavadinimas",null,null,null,null,0,null,{"$f":"ROUND(G35*$D$6*H35,2)","v":0}]
["4.1.3","Išlaidų pavadinimas",null,null,null,null,0,null,0]
["4.1.4","Išlaidų pavadinimas",null,null,null,null,0,null,0]
["4.1.5","Išlaidų pavadinimas",null,null,null,null,0,null,0]
["4.1.6","Išlaidų pavadinimas",null,null,null,null,0,null,0]
["4.1.7","Išlaidų pavadinimas",null,null,null,null,0,null,0]
["4.1.8","Išlaidų pavadinimas",null,null,null,null,0,null,0]
["4.1.9","Išlaidų pavadinimas",null,null,null,null,0,null,0]
["4.1.10","Išlaidų pavadinimas",null,null,null,null,0,null,0]
["4.2","Kompiuterinė technika",null,null,null,null,{"$f":"SUM(G45:G49)","v":0},null,{"$f":"SUM(I45:I49)","v":0}]
["4.2.1","Išlaidų pavadinimas",null,null,null,null,0,null,{"$f":"ROUND(G45*$D$6*H45,2)","v":0}]
["4.2.2","Išlaidų pavadinimas",null,null,null,null,0,null,{"$f":"ROUND(G46*$D$6*H46,2)","v":0}]
["4.2.3","Išlaidų pavadinimas",null,null,null,null,0,null,{"$f":"ROUND(G47*$D$6*H47,2)","v":0}]
["4.2.4","Išlaidų pavadinimas",null,null,null,null,0,null,{"$f":"ROUND(G48*$D$6*H48,2)","v":0}]
["4.2.5","Išlaidų pavadinimas",null,null,null,null,0,null,{"$f":"ROUND(G49*$D$6*H49,2)","v":0}]
["4.3","Patentai, licencijos, susijusios su MTEP ir inovacijų infrastruktūra ar jos panaudojimu",null,null,null,null,{"$f":"SUM(G51:G55)","v":0},null,{"$f":"SUM(I51:I55)","v":0}]
["4.3.1","Išlaidų pavadinimas",null,null,null,null,0,null,{"$f":"ROUND(G51*$D$6*H51,2)","v":0}]
["4.3.2","Išlaidų pavadinimas",null,null,null,null,0,null,{"$f":"ROUND(G52*$D$6*H52,2)","v":0}]
["4.3.3","Išlaidų pavadinimas",null,null,null,null,0,null,{"$f":"ROUND(G53*$D$6*H53,2)","v":0}]
["4.3.4","Išlaidų pavadinimas",null,null,null,null,0,null,{"$f":"ROUND(G54*$D$6*H54,2)","v":0}]
["4.3.5","Išlaidų pavadinimas",null,null,null,null,0,null,{"$f":"ROUND(G55*$D$6*H55,2)","v":0}]
["4.4","Kiti įrengimai, įranga, prietaisai, įrankiai ir įrenginiai, priskirtini MTEP ir inovacijų infrastruktūrai",null,null,null,null,{"$f":"SUM(G57:G76)","v":0},null,{"$f":"SUM(I57:I76)","v":0}]
["4.4.1","Išlaidų pavadinimas",null,null,null,null,0,null,{"$f":"ROUND(G57*$D$6*H57,2)","v":0}]
["4.4.2","Išlaidų pavadinimas",null,null,null,null,0,null,{"$f":"ROUND(G58*$D$6*H58,2)","v":0}]
["4.4.3","Išlaidų pavadinimas",null,null,null,null,0,null,0]
["4.4.4","Išlaidų pavadinimas",null,null,null,null,0,null,0]
["4.4.5","Išlaidų pavadinimas",null,null,null,null,0,null,0]
["4.4.6","Išlaidų pavadinimas",null,null,null,null,0,null,0]
["4.4.7","Išlaidų pavadinimas",null,null,null,null,0,null,0]
["4.4.8","Išlaidų pavadinimas",null,null,null,null,0,null,0]
["4.4.9","Išlaidų pavadinimas",null,null,null,null,0,null,0]
["4.4.10","Išlaidų pavadinimas",null,null,null,null,0,null,0]
["4.4.11","Išlaidų pavadinimas",null,null,null,null,0,null,0]
["4.4.12","Išlaidų pavadinimas",null,null,null,null,0,null,0]
["4.4.13","Išlaidų pavadinimas",null,null,null,null,0,null,0]
["4.4.14","Išlaidų pavadinimas",null,null,null,null,0,null,0]
["4.4.15","Išlaidų pavadinimas",null,null,null,null,0,null,0]
["4.4.16","Išlaidų pavadinimas",null,null,null,null,0,null,0]
["4.4.17","Išlaidų pavadinimas",null,null,null,null,0,null,0]
["4.4.18","Išlaidų pavadinimas",null,null,null,null,0,null,0]
["4.4.19","Išlaidų pavadinimas",null,null,null,null,0,null,0]
["4.4.20","Išlaidų pavadinimas",null,null,null,null,0,null,0]
["Iš viso tinkamų finansuoti išlaidų:",null,null,null,null,null,{"$f":"G9+G32","v":0},null,{"$f":"I9+I32","v":0}]

{"sheet":"10","index":11,"n_rows":77,"n_cols":10,"rows_kept":77,"cut":false,"hidden":false,"merged":[[73,1,73,2],[74,1,74,2],[75,1,75,2],[76,0,76,5],[67,1,67,2],[68,1,68,2],[69,1,69,2],[70,1,70,2],[71,1,71,2],[72,1,72,2],[66,1,66,2],[55,1,55,2],[56,1,56,2],[57,1,57,2],[58,1,58,2],[59,1,59,2],[60,1,60,2],[61,1,61,2],[62,1,62,2],[63,1,63,2],[64,1,64,2],[65,1,65,2],[54,1,54,2],[43,1,43,2],[44,1,44,2],[45,1,45,2],[46,1,46,2],[47,1,47,2],[48,1,48,2],[49,1,49,2],[50,1,50,2],[51,1,51,2],[52,1,52,2],[53,1,53,2],[42,1,42,2],[31,1,31,5],[32,1,32,2],[33,1,33,2],[34,1,34,2],[35,1,35,2],[36,1,36,2],[37,1,37,2],[38,1,38,2],[39,1,39,2],[40,1,40,2],[41,1,41,2],[30,1,30,2],[19,1,19,2],[20,1,20,2],[21,1,21,2],[22,1,22,2],[23,1,23,2],[24,1,24,2],[25,1,25,2],[26,1,26,2],[27,1,27,2],[28,1,28,2],[29,1,29,2],[18,1,18,2],[7,1,7,2],[8,1,8,5],[9,1,9,2],[10,1,10,2],[11,1,11,2],[12,1,12,2],[13,1,13,2],[14,1,14,2],[15,1,15,2],[16,1,16,2],[17,1,17,2],[1,0,1,2],[1,3,1,9],[2,3,2,4],[2,5,2,6],[3,0,3,2],[3,3,3,8]]}
[null,null,"Fizinio rodiklio Nr.:"]
["Fizinio rodiklio pavadinimas:"]
[null,null,"Fizinio rodiklio matavimo vnt.:",null,null,"Fizinio rodiklio vnt. skaičius:"]
["Juridinis asmuo (pareiškėjas, partneris), atsakingas už fizinį rodiklį:"]
[]
[null,null,"Finansavimo intensyvumas:",null,null,null,null,"Pasirinkite biudžeto išlaidų kategoriją:"]
[]
["Eil. Nr.","Išlaidų kategorijos pavadinimas",null,"Matavimo vnt.","Kiekis","Vieneto kaina be PVM, Eur","Tinkamų finansuoti išlaidų suma be PVM, Eur","Infrastruktūros naudojimo laiko dalis, skirta išimtinai MTEP, proc.","Finansavimo suma, Eur","Išlaidų pagrindimo dokumentų (ne mažiau kaip 3 komercinių pasiūlymų, sąmatų, techninių projektų ir pan.) pavadinimas, data ir Nr."]
[3,"STATYBA, REKONSTRAVIMAS, REMONTAS IR KITI DARBAI \n(MTEP ir inovacijų infrastruktūrai priskirtinų statinių statybos, rekonstravimo, kapitalinio remonto išlaidos)",null,null,null,null,{"$f":"G10+G21","v":0},null,{"$f":"I10+I21","v":0}]
["3.1.","MTEP ir inovacijų infrastruktūrai priskirtinų statinių statybos išlaidos",null,null,null,null,{"$f":"SUM(G11:G20)","v":0},null,{"$f":"SUM(I11:I20)","v":0}]
["3.1.1","Išlaidų pavadinimas",null,null,null,null,{"$f":"ROUND(E11*F11,2)","v":0},null,{"$f":"ROUND(G11*$D$6*H11,2)","v":0}]
["3.1.2","Išlaidų pavadinimas",null,null,null,null,0,null,{"$f":"ROUND(G12*$D$6*H12,2)","v":0}]
["3.1.3","Išlaidų pavadinimas",null,null,null,null,0,null,0]
["3.1.4","Išlaidų pavadinimas",null,null,null,null,0,null,0]
["3.1.5","Išlaidų pavadinimas",null,null,null,null,0,null,0]
["3.1.6","Išlaidų pavadinimas",null,null,null,null,0,null,{"$f":"ROUND(G16*$D$6*H16,2)","v":0}]
["3.1.7","Išlaidų pavadinimas",null,null,null,null,0,null,{"$f":"ROUND(G17*$D$6*H17,2)","v":0}]
["3.1.8","Išlaidų pavadinimas",null,null,null,null,0,null,{"$f":"ROUND(G18*$D$6*H18,2)","v":0}]
["3.1.9","Išlaidų pavadinimas",null,null,null,null,0,null,{"$f":"ROUND(G19*$D$6*H19,2)","v":0}]
["3.1.10","Išlaidų pavadinimas",null,null,null,null,{"$f":"ROUND(E20*F20,2)","v":0},null,{"$f":"ROUND(G20*$D$6*H20,2)","v":0}]
["3.2.","MTEP ir inovacijų infrastruktūrai priskirtinų statinių rekonstravimo, kapitalinio remonto išlaidos",null,null,null,null,{"$f":"SUM(G22:G31)","v":0},null,{"$f":"SUM(I22:I31)","v":0}]
["3.2.1","Išlaidų pavadinimas",null,null,null,null,{"$f":"ROUND(E22*F22,2)","v":0},null,0]
["3.2.2","Išlaidų pavadinimas",null,null,null,null,0,null,{"$f":"ROUND(G23*$D$6*H23,2)","v":0}]
["3.2.3","Išlaidų pavadinimas",null,null,null,null,0,null,0]
["3.2.4","Išlaidų pavadinimas",null,null,null,null,0,null,0]
["3.2.5","Išlaidų pavadinimas",null,null,null,null,0,null,0]
["3.2.6","Išlaidų pavadinimas",null,null,null,null,0,null,0]
["3.2.7","Išlaidų pavadinimas",null,null,null,null,0,null,0]
["3.2.8","Išlaidų pavadinimas",null,null,null,null,0,null,0]
["3.2.9","Išlaidų pavadinimas",null,null,null,null,0,null,0]
["3.2.10","Išlaidų pavadinimas",null,null,null,null,0,null,0]
[4,"ĮRANGA, ĮRENGINIAI IR KITAS TURTAS",null,null,null,null,{"$f":"SUM(G33,G44,G50,G56)","v":0},null,{"$f":"SUM(I33,I44,I50,I56)","v":0}]
["4.1","Baldai (tiesiogiai MTEP veikloms vykdyti bei kuriamoms tyrėjų ir pagalbinio personalo darbo vietoms aprūpinti būtini baldai)",null,null,null,null,{"$f":"SUM(G34:G43)","v":0},null,{"$f":"SUM(I34:I43)","v":0}]
["4.1.1","Išlaidų pavadinimas",null,null,null,null,0,null,{"$f":"ROUND(G34*$D$6*H34,2)","v":0}]
["4.1.2","Išlaidų pavadinimas",null,null,null,null,0,null,{"$f":"ROUND(G35*$D$6*H35,2)","v":0}]
["4.1.3","Išlaidų pavadinimas",null,null,null,null,0,null,0]
["4.1.4","Išlaidų pavadinimas",null,null,null,null,0,null,0]
["4.1.5","Išlaidų pavadinimas",null,null,null,null,0,null,0]
["4.1.6","Išlaidų pavadinimas",null,null,null,null,0,null,0]
["4.1.7","Išlaidų pavadinimas",null,null,null,null,0,null,0]
["4.1.8","Išlaidų pavadinimas",null,null,null,null,0,null,0]
["4.1.9","Išlaidų pavadinimas",null,null,null,null,0,null,0]
["4.1.10","Išlaidų pavadinimas",null,null,null,null,0,null,0]
["4.2","Kompiuterinė technika",null,null,null,null,{"$f":"SUM(G45:G49)","v":0},null,{"$f":"SUM(I45:I49)","v":0}]
["4.2.1","Išlaidų pavadinimas",null,null,null,null,0,null,{"$f":"ROUND(G45*$D$6*H45,2)","v":0}]
["4.2.2","Išlaidų pavadinimas",null,null,null,null,0,null,{"$f":"ROUND(G46*$D$6*H46,2)","v":0}]
["4.2.3","Išlaidų pavadinimas",null,null,null,null,0,null,{"$f":"ROUND(G47*$D$6*H47,2)","v":0}]
["4.2.4","Išlaidų pavadinimas",null,null,null,null,0,null,{"$f":"ROUND(G48*$D$6*H48,2)","v":0}]
["4.2.5","Išlaidų pavadinimas",null,null,null,null,0,null,{"$f":"ROUND(G49*$D$6*H49,2)","v":0}]
["4.3","Patentai, licencijos, susijusios su MTEP ir inovacijų infrastruktūra ar jos panaudojimu",null,null,null,null,{"$f":"SUM(G51:G55)","v":0},null,{"$f":"SUM(I51:I55)","v":0}]
["4.3.1","Išlaidų pavadinimas",null,null,null,null,0,null,{"$f":"ROUND(G51*$D$6*H51,2)","v":0}]
["4.3.2","Išlaidų pavadinimas",null,null,null,null,0,null,{"$f":"ROUND(G52*$D$6*H52,2)","v":0}]
["4.3.3","Išlaidų pavadinimas",null,null,null,null,0,null,{"$f":"ROUND(G53*$D$6*H53,2)","v":0}]
["4.3.4","Išlaidų pavadinimas",null,null,null,null,0,null,{"$f":"ROUND(G54*$D$6*H54,2)","v":0}]
["4.3.5","Išlaidų pavadinimas",null,null,null,null,0,null,{"$f":"ROUND(G55*$D$6*H55,2)","v":0}]
["4.4","Kiti įrengimai, įranga, prietaisai, įrankiai ir įrenginiai, priskirtini MTEP ir inovacijų infrastruktūrai",null,null,null,null,{"$f":"SUM(G57:G76)","v":0},null,{"$f":"SUM(I57:I76)","v":0}]
["4.4.1","Išlaidų pavadinimas",null,null,null,null,0,null,{"$f":"ROUND(G57*$D$6*H57,2)","v":0}]
["4.4.2","Išlaidų pavadinimas",null,null,null,null,0,null,{"$f":"ROUND(G58*$D$6*H58,2)","v":0}]
["4.4.3","Išlaidų pavadinimas",null,null,null,null,0,null,0]
["4.4.4","Išlaidų pavadinimas",null,null,null,null,0,null,0]
["4.4.5","Išlaidų pavadinimas",null,null,null,null,0,null,0]
["4.4.6","Išlaidų pavadinimas",null,null,null,null,0,null,0]
["4.4.7","Išlaidų pavadinimas",null,null,null,null,0,null,0]
["4.4.8","Išlaidų pavadinimas",null,null,null,null,0,null,0]
["4.4.9","Išlaidų pavadinimas",null,null,null,null,0,null,0]
["4.4.10","Išlaidų pavadinimas",null,null,null,null,0,null,0]
["4.4.11","Išlaidų pavadinimas",null,null,null,null,0,null,0]
["4.4.12","Išlaidų pavadinimas",null,null,null,null,0,null,0]
["4.4.13","Išlaidų pavadinimas",null,null,null,null,0,null,0]
["4.4.14","Išlaidų pavadinimas",null,null,null,null,0,null,0]
["4.4.15","Išlaidų pavadinimas",null,null,null,null,0,null,0]
["4.4.16","Išlaidų pavadinimas",null,null,null,null,0,null,0]
["4.4.17","Išlaidų pavadinimas",null,null,null,null,0,null,0]
["4.4.18","Išlaidų pavadinimas",null,null,null,null,0,null,0]
["4.4.19","Išlaidų pavadinimas",null,null,null,null,0,null,0]
["4.4.20","Išlaidų pavadinimas",null,null,null,null,0,null,0]
["Iš viso tinkamų finansuoti išlaidų:",null,null,null,null,null,{"$f":"G9+G32","v":0},null,{"$f":"I9+I32","v":0}]